Workbook

Sheet Disclaimer
B4: Disclaimer
B5: 1 | C5: Neither the U.S. Department of Energy (DOE) National Energy Technology Laboratory (NETL) nor any person acting on behalf of these organizations:
C6: A. Makes any warranty or representation, express or implied, with respect to the accuracy, completeness, or usefulness of the information contained in this document, or that the use of any information, apparatus, method, or process disclosed in this document may not infringe on privately owned rights; or
C7: B. Assumes any liability with this report as to its use, or damages resulting from the use of any information, apparatus, method, or process disclosed in this document.
B8: 2 | C8: Reference herein to any specific commercial product, process, or service by trade name, trademark, manufacturer, or otherwise, does not necessarily constitute or imply its endorsement, recommendation, or favoring by NETL. The views and opinions of the authors expressed herein do not necessarily state or reflect those of NETL.
B10: Contact Information

Sheet Instruction
B1: Instructions
B2: Please read these instruction before using the model. This model requires the @RISK add-in to be installed, macros enabled, and access to the VBA project object model allowed.
B3: Quick links >>> | D3: Go to Dashboard | F3: Go to Enabling Macros | H3: Go to Grid Mix Explorer ribbon
B4: Enabling Macros
B5: This model has built-in functions to calculate and update results. In order to let the model operate functionally, the macros have to be enabled.
B25: Grid Mix Explorer Ribbon
B26: This model has a built-in ribbon tab (Grid Mix Explorer) that collectively locates the model functions to help you find them easily.
B27: It contains the Setting group to control the Tech Mixer, Reporting Metrics, and the GWP Factor.
B36: Tech Mixer
B37: The editor allows you to change the technology ratio and save your custom mix.
B63: Reporting Metrics
B64: If you would like to change the reporting units, you can change the numerator and denominator units. The environmental chart and table will be updated accordingly. You can also change the GWP Factor. Currently, this model supports IPCC 2001 and 2007, including 20, 100 and 500 year time horizons as well as 2013 (20 and 100 year time horizons).

Sheet Dashboard
B32: Category (Units) | C32: Material or Energy Flow | D32: Total | E32: Current | N32: New/Future
D33: Total | E33: Fleet Coal | F33: Fleet Natural Gas | G33: Existing Nuclear | H33: Existing Hydro | I33: Petroleum | J33: Onshore Wind | K33: Geothermal | L33: Solar Thermal | M33: Solar PV | N33: SCPC | O33: SCPC/CCS | P33: NGCC | Q33: NGCC/CCS | R33: IGCC | S33: IGCC/CCS | T33: Gen III+ Nuclear | U33: Existing Nuclear w/ Centrifuge Enrich | V33: Gen III+ Nuclear w/ Centrifuge Enrich | W33: Greenfield Hydro | X33: Power Addition Hydro | Y33: Power Upgrade Hydro | Z33: Advanced Onshore Wind | AA33: Offshore Wind
B34: ="GHG" &UnitLabel -> GHG (kg/MWh) | C34: CO₂ | D34: =SUM(E34:AA34) -> 573.2266323 | E34: =Data!F3*Parameters!$I$3/100*UnitConv -> 417.7513963 | F34: =Data!G3*Parameters!$I$4/100*UnitConv -> 140.1257513 | G34: =Data!H3*Parameters!$I$5/100*UnitConv -> 1.369594269 | H34: =Data!I3*Parameters!$I$6/100*UnitConv -> 1.251651217 | I34: =Data!J3*Parameters!$I$7/100*UnitConv -> 11.24382636 | J34: =Data!K3*Parameters!$I$8/100*UnitConv -> 0.7815663433 | K34: =Data!L3*Parameters!$I$9/100*UnitConv -> 0.4711129213 | L34: =Data!M3*Parameters!$I$10/100*UnitConv -> 0.03818524642 | M34: =Data!AB3*Parameters!$I$25/100*UnitConv -> 0.1935483871 | N34: =Data!N3*Parameters!$I$11/100*UnitConv -> 0 | O34: =Data!O3*Parameters!$I$12/100*UnitConv -> 0 | P34: =Data!P3*Parameters!$I$13/100*UnitConv -> 0 | Q34: =Data!Q3*Parameters!$I$14/100*UnitConv -> 0 | R34: =Data!R3*Parameters!$I$15/100*UnitConv -> 0 | S34: =Data!S3*Parameters!$I$16/100*UnitConv -> 0 | T34: =Data!T3*Parameters!$I$17/100*UnitConv -> 0 | U34: =Data!U3*Parameters!$I$18/100*UnitConv -> 0 | V34: =Data!V3*Parameters!$I$19/100*UnitConv -> 0 | W34: =Data!W3*Parameters!$I$20/100*UnitConv -> 0 | X34: =Data!X3*Parameters!$I$21/100*UnitConv -> 0 | Y34: =Data!Y3*Parameters!$I$22/100*UnitConv -> 0 | Z34: =Data!Z3*Parameters!$I$23/100*UnitConv -> 0 | AA34: =Data!AA3*Parameters!$I$24/100*UnitConv -> 0
C35: N₂O | D35: 0.009558451801 | E35: =Data!F4*Parameters!$I$3/100*UnitConv -> 0.009048524589 | F35: =Data!G4*Parameters!$I$4/100*UnitConv -> 0.0003085595309 | G35: =Data!H4*Parameters!$I$5/100*UnitConv -> 3.045103139e-05 | H35: =Data!I4*Parameters!$I$6/100*UnitConv -> 2.639938035e-08 | I35: =Data!J4*Parameters!$I$7/100*UnitConv -> 0.0001532183574 | J35: =Data!K4*Parameters!$I$8/100*UnitConv -> 1.597219697e-05 | K35: =Data!L4*Parameters!$I$9/100*UnitConv -> 8.903827174e-08 | L35: =Data!M4*Parameters!$I$10/100*UnitConv -> 1.61065689e-06 | M35: =Data!AB4*Parameters!$I$25/100*UnitConv -> 0 | N35: =Data!N4*Parameters!$I$11/100*UnitConv -> 0 | O35: =Data!O4*Parameters!$I$12/100*UnitConv -> 0 | P35: =Data!P4*Parameters!$I$13/100*UnitConv -> 0 | Q35: =Data!Q4*Parameters!$I$14/100*UnitConv -> 0 | R35: =Data!R4*Parameters!$I$15/100*UnitConv -> 0 | S35: =Data!S4*Parameters!$I$16/100*UnitConv -> 0 | T35: =Data!T4*Parameters!$I$17/100*UnitConv -> 0 | U35: =Data!U4*Parameters!$I$18/100*UnitConv -> 0 | V35: =Data!V4*Parameters!$I$19/100*UnitConv -> 0 | W35: =Data!W4*Parameters!$I$20/100*UnitConv -> 0 | X35: =Data!X4*Parameters!$I$21/100*UnitConv -> 0 | Y35: =Data!Y4*Parameters!$I$22/100*UnitConv -> 0 | Z35: =Data!Z4*Parameters!$I$23/100*UnitConv -> 0 | AA35: =Data!AA4*Parameters!$I$24/100*UnitConv -> 0
C36: CH₄ | D36: 0.6434189276 | E36: =Data!F5*Parameters!$I$3/100*UnitConv -> 0.1550800996 | F36: =Data!G5*Parameters!$I$4/100*UnitConv -> 0.4490449862 | G36: =Data!H5*Parameters!$I$5/100*UnitConv -> 0.006726840972 | H36: =Data!I5*Parameters!$I$6/100*UnitConv -> 0.01724984426 | I36: =Data!J5*Parameters!$I$7/100*UnitConv -> 0.01333061772 | J36: =Data!K5*Parameters!$I$8/100*UnitConv -> 0.001024551005 | K36: =Data!L5*Parameters!$I$9/100*UnitConv -> 0.0008717600584 | L36: =Data!M5*Parameters!$I$10/100*UnitConv -> 9.022788556e-05 | M36: =Data!AB5*Parameters!$I$25/100*UnitConv -> 0 | N36: =Data!N5*Parameters!$I$11/100*UnitConv -> 0 | O36: =Data!O5*Parameters!$I$12/100*UnitConv -> 0 | P36: =Data!P5*Parameters!$I$13/100*UnitConv -> 0 | Q36: =Data!Q5*Parameters!$I$14/100*UnitConv -> 0 | R36: =Data!R5*Parameters!$I$15/100*UnitConv -> 0 | S36: =Data!S5*Parameters!$I$16/100*UnitConv -> 0 | T36: =Data!T5*Parameters!$I$17/100*UnitConv -> 0 | U36: =Data!U5*Parameters!$I$18/100*UnitConv -> 0 | V36: =Data!V5*Parameters!$I$19/100*UnitConv -> 0 | W36: =Data!W5*Parameters!$I$20/100*UnitConv -> 0 | X36: =Data!X5*Parameters!$I$21/100*UnitConv -> 0 | Y36: =Data!Y5*Parameters!$I$22/100*UnitConv -> 0 | Z36: =Data!Z5*Parameters!$I$23/100*UnitConv -> 0 | AA36: =Data!AA5*Parameters!$I$24/100*UnitConv -> 0
C37: SF₆ | D37: 0.0001428940832 | E37: =Data!F6*Parameters!$I$3/100*UnitConv -> 5.575305755e-05 | F37: =Data!G6*Parameters!$I$4/100*UnitConv -> 3.970076334e-05 | G37: =Data!H6*Parameters!$I$5/100*UnitConv -> 2.823483891e-05 | H37: =Data!I6*Parameters!$I$6/100*UnitConv -> 1.06059801e-05 | I37: =Data!J6*Parameters!$I$7/100*UnitConv -> 1.433240554e-06 | J37: =Data!K6*Parameters!$I$8/100*UnitConv -> 6.449582493e-06 | K37: =Data!L6*Parameters!$I$9/100*UnitConv -> 5.732962216e-07 | L37: =Data!M6*Parameters!$I$10/100*UnitConv -> 1.433240554e-07 | M37: =Data!AB6*Parameters!$I$25/100*UnitConv -> 0 | N37: =Data!N6*Parameters!$I$11/100*UnitConv -> 0 | O37: =Data!O6*Parameters!$I$12/100*UnitConv -> 0 | P37: =Data!P6*Parameters!$I$13/100*UnitConv -> 0 | Q37: =Data!Q6*Parameters!$I$14/100*UnitConv -> 0 | R37: =Data!R6*Parameters!$I$15/100*UnitConv -> 0 | S37: =Data!S6*Parameters!$I$16/100*UnitConv -> 0 | T37: =Data!T6*Parameters!$I$17/100*UnitConv -> 0 | U37: =Data!U6*Parameters!$I$18/100*UnitConv -> 0 | V37: =Data!V6*Parameters!$I$19/100*UnitConv -> 0 | W37: =Data!W6*Parameters!$I$20/100*UnitConv -> 0 | X37: =Data!X6*Parameters!$I$21/100*UnitConv -> 0 | Y37: =Data!Y6*Parameters!$I$22/100*UnitConv -> 0 | Z37: =Data!Z6*Parameters!$I$23/100*UnitConv -> 0 | AA37: =Data!AA6*Parameters!$I$24/100*UnitConv -> 0
C38: =GHGLabel -> kg CO₂e/ delivered MWh (IPCC 2013 100-yr GWP) | D38: 602.5961433 | E38: =E34*GWPCO2+E35*GWPN2O+E36*GWPCH4+E37*GWPSF6 -> 427.340937 | F38: 157.3162894 | G38: 2.284353666 | H38: 2.12189401 | I38: 11.80306883 | J38: 0.9747750827 | K38: 0.515995278 | L38: 0.04528154135 | M38: =M34*GWPCO2+M35*GWPN2O+M36*GWPCH4+M37*GWPSF6 -> 0.1935483871 | N38: 0 | O38: 0 | P38: 0 | Q38: 0 | R38: 0 | S38: 0 | T38: 0 | U38: 0 | V38: 0 | W38: 0 | X38: 0 | Y38: 0 | Z38: 0 | AA38: 0
B39: ="Other Air" & UnitLabel -> Other Air (kg/MWh) | C39: Pb | D39: 1.745750909e-05 | E39: =Data!F8*Parameters!$I$3/100*UnitConv -> 9.639136362e-06 | F39: =Data!G8*Parameters!$I$4/100*UnitConv -> 4.492345807e-07 | G39: =Data!H8*Parameters!$I$5/100*UnitConv -> 1.735477855e-07 | H39: =Data!I8*Parameters!$I$6/100*UnitConv -> 2.235257094e-09 | I39: =Data!J8*Parameters!$I$7/100*UnitConv -> 7.539190686e-06 | J39: =Data!K8*Parameters!$I$8/100*UnitConv -> -3.734035405e-07 | K39: =Data!L8*Parameters!$I$9/100*UnitConv -> 4.146960388e-09 | L39: =Data!M8*Parameters!$I$10/100*UnitConv -> 2.342100187e-08 | M39: =Data!AB8*Parameters!$I$25/100*UnitConv -> 0 | N39: =Data!N8*Parameters!$I$11/100*UnitConv -> 0 | O39: =Data!O8*Parameters!$I$12/100*UnitConv -> 0 | P39: =Data!P8*Parameters!$I$13/100*UnitConv -> 0 | Q39: =Data!Q8*Parameters!$I$14/100*UnitConv -> 0 | R39: =Data!R8*Parameters!$I$15/100*UnitConv -> 0 | S39: =Data!S8*Parameters!$I$16/100*UnitConv -> 0 | T39: =Data!T8*Parameters!$I$17/100*UnitConv -> 0 | U39: =Data!U8*Parameters!$I$18/100*UnitConv -> 0 | V39: =Data!V8*Parameters!$I$19/100*UnitConv -> 0 | W39: =Data!W8*Parameters!$I$20/100*UnitConv -> 0 | X39: =Data!X8*Parameters!$I$21/100*UnitConv -> 0 | Y39: =Data!Y8*Parameters!$I$22/100*UnitConv -> 0 | Z39: =Data!Z8*Parameters!$I$23/100*UnitConv -> 0 | AA39: =Data!AA8*Parameters!$I$24/100*UnitConv -> 0
C40: Hg | D40: 2.874851879e-09 | E40: =Data!F9*Parameters!$I$3/100*UnitConv -> 2.874037278e-09 | F40: =Data!G9*Parameters!$I$4/100*UnitConv -> 0 | G40: =Data!H9*Parameters!$I$5/100*UnitConv -> 8.080504381e-13 | H40: =Data!I9*Parameters!$I$6/100*UnitConv -> 2.998566553e-16 | I40: =Data!J9*Parameters!$I$7/100*UnitConv -> 0 | J40: =Data!K9*Parameters!$I$8/100*UnitConv -> 5.140992429e-15 | K40: =Data!L9*Parameters!$I$9/100*UnitConv -> 7.16338113e-16 | L40: =Data!M9*Parameters!$I$10/100*UnitConv -> 3.932716516e-16 | M40: =Data!AB9*Parameters!$I$25/100*UnitConv -> 0 | N40: =Data!N9*Parameters!$I$11/100*UnitConv -> 0 | O40: =Data!O9*Parameters!$I$12/100*UnitConv -> 0 | P40: =Data!P9*Parameters!$I$13/100*UnitConv -> 0 | Q40: =Data!Q9*Parameters!$I$14/100*UnitConv -> 0 | R40: =Data!R9*Parameters!$I$15/100*UnitConv -> 0 | S40: =Data!S9*Parameters!$I$16/100*UnitConv -> 0 | T40: =Data!T9*Parameters!$I$17/100*UnitConv -> 0 | U40: =Data!U9*Parameters!$I$18/100*UnitConv -> 0 | V40: =Data!V9*Parameters!$I$19/100*UnitConv -> 0 | W40: =Data!W9*Parameters!$I$20/100*UnitConv -> 0 | X40: =Data!X9*Parameters!$I$21/100*UnitConv -> 0 | Y40: =Data!Y9*Parameters!$I$22/100*UnitConv -> 0 | Z40: =Data!Z9*Parameters!$I$23/100*UnitConv -> 0 | AA40: =Data!AA9*Parameters!$I$24/100*UnitConv -> 0
C41: NH₃ | D41: 0.007879950561 | E41: =Data!F10*Parameters!$I$3/100*UnitConv -> 0.002169761608 | F41: =Data!G10*Parameters!$I$4/100*UnitConv -> 0.004108174396 | G41: =Data!H10*Parameters!$I$5/100*UnitConv -> 0.0006299947918 | H41: =Data!I10*Parameters!$I$6/100*UnitConv -> 8.404956787e-09 | I41: =Data!J10*Parameters!$I$7/100*UnitConv -> 3.483043156e-05 | J41: =Data!K10*Parameters!$I$8/100*UnitConv -> 2.381270116e-05 | K41: =Data!L10*Parameters!$I$9/100*UnitConv -> 0.0009133050585 | L41: =Data!M10*Parameters!$I$10/100*UnitConv -> 6.316941872e-08 | M41: =Data!AB10*Parameters!$I$25/100*UnitConv -> 0 | N41: =Data!N10*Parameters!$I$11/100*UnitConv -> 0 | O41: =Data!O10*Parameters!$I$12/100*UnitConv -> 0 | P41: =Data!P10*Parameters!$I$13/100*UnitConv -> 0 | Q41: =Data!Q10*Parameters!$I$14/100*UnitConv -> 0 | R41: =Data!R10*Parameters!$I$15/100*UnitConv -> 0 | S41: =Data!S10*Parameters!$I$16/100*UnitConv -> 0 | T41: =Data!T10*Parameters!$I$17/100*UnitConv -> 0 | U41: =Data!U10*Parameters!$I$18/100*UnitConv -> 0 | V41: =Data!V10*Parameters!$I$19/100*UnitConv -> 0 | W41: =Data!W10*Parameters!$I$20/100*UnitConv -> 0 | X41: =Data!X10*Parameters!$I$21/100*UnitConv -> 0 | Y41: =Data!Y10*Parameters!$I$22/100*UnitConv -> 0 | Z41: =Data!Z10*Parameters!$I$23/100*UnitConv -> 0 | AA41: =Data!AA10*Parameters!$I$24/100*UnitConv -> 0
C42: CO | D42: 0.2317733206 | E42: =Data!F11*Parameters!$I$3/100*UnitConv -> 0.1662787721 | F42: =Data!G11*Parameters!$I$4/100*UnitConv -> 0.0516576168 | G42: =Data!H11*Parameters!$I$5/100*UnitConv -> 0.005333596599 | H42: =Data!I11*Parameters!$I$6/100*UnitConv -> 1.74578977e-05 | I42: =Data!J11*Parameters!$I$7/100*UnitConv -> 0.00555924123 | J42: =Data!K11*Parameters!$I$8/100*UnitConv -> 0.002107861131 | K42: =Data!L11*Parameters!$I$9/100*UnitConv -> 0.0001055575448 | L42: =Data!M11*Parameters!$I$10/100*UnitConv -> 0.0007132173276 | M42: =Data!AB11*Parameters!$I$25/100*UnitConv -> 0 | N42: =Data!N11*Parameters!$I$11/100*UnitConv -> 0 | O42: =Data!O11*Parameters!$I$12/100*UnitConv -> 0 | P42: =Data!P11*Parameters!$I$13/100*UnitConv -> 0 | Q42: =Data!Q11*Parameters!$I$14/100*UnitConv -> 0 | R42: =Data!R11*Parameters!$I$15/100*UnitConv -> 0 | S42: =Data!S11*Parameters!$I$16/100*UnitConv -> 0 | T42: =Data!T11*Parameters!$I$17/100*UnitConv -> 0 | U42: =Data!U11*Parameters!$I$18/100*UnitConv -> 0 | V42: =Data!V11*Parameters!$I$19/100*UnitConv -> 0 | W42: =Data!W11*Parameters!$I$20/100*UnitConv -> 0 | X42: =Data!X11*Parameters!$I$21/100*UnitConv -> 0 | Y42: =Data!Y11*Parameters!$I$22/100*UnitConv -> 0 | Z42: =Data!Z11*Parameters!$I$23/100*UnitConv -> 0 | AA42: =Data!AA11*Parameters!$I$24/100*UnitConv -> 0
C43: NOX | D43: 0.7583118746 | E43: =Data!F12*Parameters!$I$3/100*UnitConv -> 0.4524037716 | F43: =Data!G12*Parameters!$I$4/100*UnitConv -> 0.2640813673 | G43: =Data!H12*Parameters!$I$5/100*UnitConv -> 0.01487888389 | H43: =Data!I12*Parameters!$I$6/100*UnitConv -> 4.131845049e-06 | I43: =Data!J12*Parameters!$I$7/100*UnitConv -> 0.02509169047 | J43: =Data!K12*Parameters!$I$8/100*UnitConv -> 0.001711742087 | K43: =Data!L12*Parameters!$I$9/100*UnitConv -> 4.954631442e-05 | L43: =Data!M12*Parameters!$I$10/100*UnitConv -> 9.074115864e-05 | M43: =Data!AB12*Parameters!$I$25/100*UnitConv -> 0 | N43: =Data!N12*Parameters!$I$11/100*UnitConv -> 0 | O43: =Data!O12*Parameters!$I$12/100*UnitConv -> 0 | P43: =Data!P12*Parameters!$I$13/100*UnitConv -> 0 | Q43: =Data!Q12*Parameters!$I$14/100*UnitConv -> 0 | R43: =Data!R12*Parameters!$I$15/100*UnitConv -> 0 | S43: =Data!S12*Parameters!$I$16/100*UnitConv -> 0 | T43: =Data!T12*Parameters!$I$17/100*UnitConv -> 0 | U43: =Data!U12*Parameters!$I$18/100*UnitConv -> 0 | V43: =Data!V12*Parameters!$I$19/100*UnitConv -> 0 | W43: =Data!W12*Parameters!$I$20/100*UnitConv -> 0 | X43: =Data!X12*Parameters!$I$21/100*UnitConv -> 0 | Y43: =Data!Y12*Parameters!$I$22/100*UnitConv -> 0 | Z43: =Data!Z12*Parameters!$I$23/100*UnitConv -> 0 | AA43: =Data!AA12*Parameters!$I$24/100*UnitConv -> 0
C44: SO₂ | D44: 1.525489274 | E44: =Data!F13*Parameters!$I$3/100*UnitConv -> 0.9863641246 | F44: =Data!G13*Parameters!$I$4/100*UnitConv -> 0.4683110007 | G44: =Data!H13*Parameters!$I$5/100*UnitConv -> 0.002587286506 | H44: =Data!I13*Parameters!$I$6/100*UnitConv -> 5.367481605e-06 | I44: =Data!J13*Parameters!$I$7/100*UnitConv -> 0.06740381284 | J44: =Data!K13*Parameters!$I$8/100*UnitConv -> 0.0007293107506 | K44: =Data!L13*Parameters!$I$9/100*UnitConv -> 9.449539269e-06 | L44: =Data!M13*Parameters!$I$10/100*UnitConv -> 7.892188461e-05 | M44: =Data!AB13*Parameters!$I$25/100*UnitConv -> 0 | N44: =Data!N13*Parameters!$I$11/100*UnitConv -> 0 | O44: =Data!O13*Parameters!$I$12/100*UnitConv -> 0 | P44: =Data!P13*Parameters!$I$13/100*UnitConv -> 0 | Q44: =Data!Q13*Parameters!$I$14/100*UnitConv -> 0 | R44: =Data!R13*Parameters!$I$15/100*UnitConv -> 0 | S44: =Data!S13*Parameters!$I$16/100*UnitConv -> 0 | T44: =Data!T13*Parameters!$I$17/100*UnitConv -> 0 | U44: =Data!U13*Parameters!$I$18/100*UnitConv -> 0 | V44: =Data!V13*Parameters!$I$19/100*UnitConv -> 0 | W44: =Data!W13*Parameters!$I$20/100*UnitConv -> 0 | X44: =Data!X13*Parameters!$I$21/100*UnitConv -> 0 | Y44: =Data!Y13*Parameters!$I$22/100*UnitConv -> 0 | Z44: =Data!Z13*Parameters!$I$23/100*UnitConv -> 0 | AA44: =Data!AA13*Parameters!$I$24/100*UnitConv -> 0
C45: VOC | D45: 0.1091491825 | E45: =Data!F14*Parameters!$I$3/100*UnitConv -> 0.01024686646 | F45: =Data!G14*Parameters!$I$4/100*UnitConv -> 0.09494319043 | G45: =Data!H14*Parameters!$I$5/100*UnitConv -> 0.0004528222584 | H45: =Data!I14*Parameters!$I$6/100*UnitConv -> 4.721550295e-07 | I45: =Data!J14*Parameters!$I$7/100*UnitConv -> 0.00344501012 | J45: =Data!K14*Parameters!$I$8/100*UnitConv -> 5.087051475e-05 | K45: =Data!L14*Parameters!$I$9/100*UnitConv -> 1.19634446e-06 | L45: =Data!M14*Parameters!$I$10/100*UnitConv -> 8.754255991e-06 | M45: =Data!AB14*Parameters!$I$25/100*UnitConv -> 0 | N45: =Data!N14*Parameters!$I$11/100*UnitConv -> 0 | O45: =Data!O14*Parameters!$I$12/100*UnitConv -> 0 | P45: =Data!P14*Parameters!$I$13/100*UnitConv -> 0 | Q45: =Data!Q14*Parameters!$I$14/100*UnitConv -> 0 | R45: =Data!R14*Parameters!$I$15/100*UnitConv -> 0 | S45: =Data!S14*Parameters!$I$16/100*UnitConv -> 0 | T45: =Data!T14*Parameters!$I$17/100*UnitConv -> 0 | U45: =Data!U14*Parameters!$I$18/100*UnitConv -> 0 | V45: =Data!V14*Parameters!$I$19/100*UnitConv -> 0 | W45: =Data!W14*Parameters!$I$20/100*UnitConv -> 0 | X45: =Data!X14*Parameters!$I$21/100*UnitConv -> 0 | Y45: =Data!Y14*Parameters!$I$22/100*UnitConv -> 0 | Z45: =Data!Z14*Parameters!$I$23/100*UnitConv -> 0 | AA45: =Data!AA14*Parameters!$I$24/100*UnitConv -> 0
C46: PM | D46: 0.0759533662 | E46: =Data!F15*Parameters!$I$3/100*UnitConv -> 0.07254557644 | F46: =Data!G15*Parameters!$I$4/100*UnitConv -> 0.0006728512141 | G46: =Data!H15*Parameters!$I$5/100*UnitConv -> 0.002680725148 | H46: =Data!I15*Parameters!$I$6/100*UnitConv -> 3.211731489e-09 | I46: =Data!J15*Parameters!$I$7/100*UnitConv -> 0 | J46: =Data!K15*Parameters!$I$8/100*UnitConv -> 5.327619423e-05 | K46: =Data!L15*Parameters!$I$9/100*UnitConv -> 5.387650196e-07 | L46: =Data!M15*Parameters!$I$10/100*UnitConv -> 3.952280301e-07 | M46: =Data!AB15*Parameters!$I$25/100*UnitConv -> 0 | N46: =Data!N15*Parameters!$I$11/100*UnitConv -> 0 | O46: =Data!O15*Parameters!$I$12/100*UnitConv -> 0 | P46: =Data!P15*Parameters!$I$13/100*UnitConv -> 0 | Q46: =Data!Q15*Parameters!$I$14/100*UnitConv -> 0 | R46: =Data!R15*Parameters!$I$15/100*UnitConv -> 0 | S46: =Data!S15*Parameters!$I$16/100*UnitConv -> 0 | T46: =Data!T15*Parameters!$I$17/100*UnitConv -> 0 | U46: =Data!U15*Parameters!$I$18/100*UnitConv -> 0 | V46: =Data!V15*Parameters!$I$19/100*UnitConv -> 0 | W46: =Data!W15*Parameters!$I$20/100*UnitConv -> 0 | X46: =Data!X15*Parameters!$I$21/100*UnitConv -> 0 | Y46: =Data!Y15*Parameters!$I$22/100*UnitConv -> 0 | Z46: =Data!Z15*Parameters!$I$23/100*UnitConv -> 0 | AA46: =Data!AA15*Parameters!$I$24/100*UnitConv -> 0
B47: ="Solid Waste" & UnitLabel -> Solid Waste (kg/MWh) | C47: Heavy metals to industrial soil | D47: 9.436252531 | E47: =Data!F16*Parameters!$I$3/100*UnitConv -> 0.07064794896 | F47: =Data!G16*Parameters!$I$4/100*UnitConv -> 0 | G47: =Data!H16*Parameters!$I$5/100*UnitConv -> 9.361954866 | H47: =Data!I16*Parameters!$I$6/100*UnitConv -> 1.975038386e-07 | I47: =Data!J16*Parameters!$I$7/100*UnitConv -> 3.926773538e-09 | J47: =Data!K16*Parameters!$I$8/100*UnitConv -> 0.00364820055 | K47: =Data!L16*Parameters!$I$9/100*UnitConv -> 6.639966833e-07 | L47: =Data!M16*Parameters!$I$10/100*UnitConv -> 6.500023979e-07 | M47: =Data!AB16*Parameters!$I$25/100*UnitConv -> 0 | N47: =Data!N16*Parameters!$I$11/100*UnitConv -> 0 | O47: =Data!O16*Parameters!$I$12/100*UnitConv -> 0 | P47: =Data!P16*Parameters!$I$13/100*UnitConv -> 0 | Q47: =Data!Q16*Parameters!$I$14/100*UnitConv -> 0 | R47: =Data!R16*Parameters!$I$15/100*UnitConv -> 0 | S47: =Data!S16*Parameters!$I$16/100*UnitConv -> 0 | T47: =Data!T16*Parameters!$I$17/100*UnitConv -> 0 | U47: =Data!U16*Parameters!$I$18/100*UnitConv -> 0 | V47: =Data!V16*Parameters!$I$19/100*UnitConv -> 0 | W47: =Data!W16*Parameters!$I$20/100*UnitConv -> 0 | X47: =Data!X16*Parameters!$I$21/100*UnitConv -> 0 | Y47: =Data!Y16*Parameters!$I$22/100*UnitConv -> 0 | Z47: =Data!Z16*Parameters!$I$23/100*UnitConv -> 0 | AA47: =Data!AA16*Parameters!$I$24/100*UnitConv -> 0
C48: Heavy metals to agricultural soil | D48: 7.002433113e-07 | E48: =Data!F17*Parameters!$I$3/100*UnitConv -> 2.29083111e-08 | F48: =Data!G17*Parameters!$I$4/100*UnitConv -> 0 | G48: =Data!H17*Parameters!$I$5/100*UnitConv -> 1.583316539e-07 | H48: =Data!I17*Parameters!$I$6/100*UnitConv -> -1.112880199e-11 | I48: =Data!J17*Parameters!$I$7/100*UnitConv -> 5.050904928e-07 | J48: =Data!K17*Parameters!$I$8/100*UnitConv -> 1.388732593e-08 | K48: =Data!L17*Parameters!$I$9/100*UnitConv -> -7.905938219e-12 | L48: =Data!M17*Parameters!$I$10/100*UnitConv -> 4.456229016e-11 | M48: =Data!AB17*Parameters!$I$25/100*UnitConv -> 0 | N48: =Data!N17*Parameters!$I$11/100*UnitConv -> 0 | O48: =Data!O17*Parameters!$I$12/100*UnitConv -> 0 | P48: =Data!P17*Parameters!$I$13/100*UnitConv -> 0 | Q48: =Data!Q17*Parameters!$I$14/100*UnitConv -> 0 | R48: =Data!R17*Parameters!$I$15/100*UnitConv -> 0 | S48: =Data!S17*Parameters!$I$16/100*UnitConv -> 0 | T48: =Data!T17*Parameters!$I$17/100*UnitConv -> 0 | U48: =Data!U17*Parameters!$I$18/100*UnitConv -> 0 | V48: =Data!V17*Parameters!$I$19/100*UnitConv -> 0 | W48: =Data!W17*Parameters!$I$20/100*UnitConv -> 0 | X48: =Data!X17*Parameters!$I$21/100*UnitConv -> 0 | Y48: =Data!Y17*Parameters!$I$22/100*UnitConv -> 0 | Z48: =Data!Z17*Parameters!$I$23/100*UnitConv -> 0 | AA48: =Data!AA17*Parameters!$I$24/100*UnitConv -> 0
B49: Water Use (L/MWh) | C49: Withdrawal | D49: 28376.86412 | E49: =Data!F18*Parameters!$I$3/100 -> 624.1762658 | F49: =Data!G18*Parameters!$I$4/100 -> 54.03103586 | G49: =Data!H18*Parameters!$I$5/100 -> 22032.81937 | H49: =Data!I18*Parameters!$I$6/100 -> 5052.872282 | I49: =Data!J18*Parameters!$I$7/100 -> 423.2224614 | J49: =Data!K18*Parameters!$I$8/100 -> 176.5767025 | K49: =Data!L18*Parameters!$I$9/100 -> 9.479878347 | L49: =Data!M18*Parameters!$I$10/100 -> 3.686126199 | M49: =Data!AB18*Parameters!$I$25/100 -> 0 | N49: =Data!N18*Parameters!$I$11/100 -> 0 | O49: =Data!O18*Parameters!$I$12/100 -> 0 | P49: =Data!P18*Parameters!$I$13/100 -> 0 | Q49: =Data!Q18*Parameters!$I$14/100 -> 0 | R49: =Data!R18*Parameters!$I$15/100 -> 0 | S49: =Data!S18*Parameters!$I$16/100 -> 0 | T49: =Data!T18*Parameters!$I$17/100 -> 0 | U49: =Data!U18*Parameters!$I$18/100 -> 0 | V49: =Data!V18*Parameters!$I$19/100 -> 0 | W49: =Data!W18*Parameters!$I$20/100 -> 0 | X49: =Data!X18*Parameters!$I$21/100 -> 0 | Y49: =Data!Y18*Parameters!$I$22/100 -> 0 | Z49: =Data!Z18*Parameters!$I$23/100 -> 0 | AA49: =Data!AA18*Parameters!$I$24/100 -> 0
C50: Discharge | D50: 22293.94157 | E50: =Data!F19*Parameters!$I$3/100 -> 218.3325488 | F50: =Data!G19*Parameters!$I$4/100 -> 3.178235273 | G50: =Data!H19*Parameters!$I$5/100 -> 21492.97723 | H50: =Data!I19*Parameters!$I$6/100 -> 10.49509219 | I50: =Data!J19*Parameters!$I$7/100 -> 397.7521072 | J50: =Data!K19*Parameters!$I$8/100 -> 159.333218 | K50: =Data!L19*Parameters!$I$9/100 -> 8.891367389 | L50: =Data!M19*Parameters!$I$10/100 -> 2.981768327 | M50: =Data!AB19*Parameters!$I$25/100 -> 0 | N50: =Data!N19*Parameters!$I$11/100 -> 0 | O50: =Data!O19*Parameters!$I$12/100 -> 0 | P50: =Data!P19*Parameters!$I$13/100 -> 0 | Q50: =Data!Q19*Parameters!$I$14/100 -> 0 | R50: =Data!R19*Parameters!$I$15/100 -> 0 | S50: =Data!S19*Parameters!$I$16/100 -> 0 | T50: =Data!T19*Parameters!$I$17/100 -> 0 | U50: =Data!U19*Parameters!$I$18/100 -> 0 | V50: =Data!V19*Parameters!$I$19/100 -> 0 | W50: =Data!W19*Parameters!$I$20/100 -> 0 | X50: =Data!X19*Parameters!$I$21/100 -> 0 | Y50: =Data!Y19*Parameters!$I$22/100 -> 0 | Z50: =Data!Z19*Parameters!$I$23/100 -> 0 | AA50: =Data!AA19*Parameters!$I$24/100 -> 0
C51: Consumption | D51: 6082.92255 | E51: =Data!F20*Parameters!$I$3/100 -> 405.8437171 | F51: =Data!G20*Parameters!$I$4/100 -> 50.85280059 | G51: =Data!H20*Parameters!$I$5/100 -> 539.8421354 | H51: =Data!I20*Parameters!$I$6/100 -> 5042.37719 | I51: =Data!J20*Parameters!$I$7/100 -> 25.47035418 | J51: =Data!K20*Parameters!$I$8/100 -> 17.24348448 | K51: =Data!L20*Parameters!$I$9/100 -> 0.5885109581 | L51: =Data!M20*Parameters!$I$10/100 -> 0.7043578728 | M51: =Data!AB20*Parameters!$I$25/100 -> 0 | N51: =Data!N20*Parameters!$I$11/100 -> 0 | O51: =Data!O20*Parameters!$I$12/100 -> 0 | P51: =Data!P20*Parameters!$I$13/100 -> 0 | Q51: =Data!Q20*Parameters!$I$14/100 -> 0 | R51: =Data!R20*Parameters!$I$15/100 -> 0 | S51: =Data!S20*Parameters!$I$16/100 -> 0 | T51: =Data!T20*Parameters!$I$17/100 -> 0 | U51: =Data!U20*Parameters!$I$18/100 -> 0 | V51: =Data!V20*Parameters!$I$19/100 -> 0 | W51: =Data!W20*Parameters!$I$20/100 -> 0 | X51: =Data!X20*Parameters!$I$21/100 -> 0 | Y51: =Data!Y20*Parameters!$I$22/100 -> 0 | Z51: =Data!Z20*Parameters!$I$23/100 -> 0 | AA51: =Data!AA20*Parameters!$I$24/100 -> 0
B52: ="Water Quality" & UnitLabel -> Water Quality (kg/MWh) | C52: Aluminum | D52: 1.236676939e-05 | E52: =Data!F21*Parameters!$I$3/100*UnitConv -> 1.109593e-05 | F52: =Data!G21*Parameters!$I$4/100*UnitConv -> 0 | G52: =Data!H21*Parameters!$I$5/100*UnitConv -> 1.230425236e-06 | H52: =Data!I21*Parameters!$I$6/100*UnitConv -> 4.826284129e-12 | I52: =Data!J21*Parameters!$I$7/100*UnitConv -> 0 | J52: =Data!K21*Parameters!$I$8/100*UnitConv -> 4.038479251e-08 | K52: =Data!L21*Parameters!$I$9/100*UnitConv -> 1.286987006e-11 | L52: =Data!M21*Parameters!$I$10/100*UnitConv -> 1.166615463e-11 | M52: =Data!AB21*Parameters!$I$25/100*UnitConv -> 0 | N52: =Data!N21*Parameters!$I$11/100*UnitConv -> 0 | O52: =Data!O21*Parameters!$I$12/100*UnitConv -> 0 | P52: =Data!P21*Parameters!$I$13/100*UnitConv -> 0 | Q52: =Data!Q21*Parameters!$I$14/100*UnitConv -> 0 | R52: =Data!R21*Parameters!$I$15/100*UnitConv -> 0 | S52: =Data!S21*Parameters!$I$16/100*UnitConv -> 0 | T52: =Data!T21*Parameters!$I$17/100*UnitConv -> 0 | U52: =Data!U21*Parameters!$I$18/100*UnitConv -> 0 | V52: =Data!V21*Parameters!$I$19/100*UnitConv -> 0 | W52: =Data!W21*Parameters!$I$20/100*UnitConv -> 0 | X52: =Data!X21*Parameters!$I$21/100*UnitConv -> 0 | Y52: =Data!Y21*Parameters!$I$22/100*UnitConv -> 0 | Z52: =Data!Z21*Parameters!$I$23/100*UnitConv -> 0 | AA52: =Data!AA21*Parameters!$I$24/100*UnitConv -> 0
C53: Arsenic (+V) | D53: 0.001052374165 | E53: =Data!F22*Parameters!$I$3/100*UnitConv -> 8.3774816e-06 | F53: =Data!G22*Parameters!$I$4/100*UnitConv -> 0 | G53: =Data!H22*Parameters!$I$5/100*UnitConv -> 0.001042374658 | H53: =Data!I22*Parameters!$I$6/100*UnitConv -> 2.348597696e-10 | I53: =Data!J22*Parameters!$I$7/100*UnitConv -> 1.210438825e-06 | J53: =Data!K22*Parameters!$I$8/100*UnitConv -> 4.06163204e-07 | K53: =Data!L22*Parameters!$I$9/100*UnitConv -> 2.618054829e-10 | L53: =Data!M22*Parameters!$I$10/100*UnitConv -> 4.926803377e-09 | M53: =Data!AB22*Parameters!$I$25/100*UnitConv -> 0 | N53: =Data!N22*Parameters!$I$11/100*UnitConv -> 0 | O53: =Data!O22*Parameters!$I$12/100*UnitConv -> 0 | P53: =Data!P22*Parameters!$I$13/100*UnitConv -> 0 | Q53: =Data!Q22*Parameters!$I$14/100*UnitConv -> 0 | R53: =Data!R22*Parameters!$I$15/100*UnitConv -> 0 | S53: =Data!S22*Parameters!$I$16/100*UnitConv -> 0 | T53: =Data!T22*Parameters!$I$17/100*UnitConv -> 0 | U53: =Data!U22*Parameters!$I$18/100*UnitConv -> 0 | V53: =Data!V22*Parameters!$I$19/100*UnitConv -> 0 | W53: =Data!W22*Parameters!$I$20/100*UnitConv -> 0 | X53: =Data!X22*Parameters!$I$21/100*UnitConv -> 0 | Y53: =Data!Y22*Parameters!$I$22/100*UnitConv -> 0 | Z53: =Data!Z22*Parameters!$I$23/100*UnitConv -> 0 | AA53: =Data!AA22*Parameters!$I$24/100*UnitConv -> 0
C54: Copper (+II) | D54: 0.001249718708 | E54: =Data!F23*Parameters!$I$3/100*UnitConv -> 1.016854876e-05 | F54: =Data!G23*Parameters!$I$4/100*UnitConv -> 0 | G54: =Data!H23*Parameters!$I$5/100*UnitConv -> 0.001235506933 | H54: =Data!I23*Parameters!$I$6/100*UnitConv -> 1.312580577e-10 | I54: =Data!J23*Parameters!$I$7/100*UnitConv -> 3.706675798e-06 | J54: =Data!K23*Parameters!$I$8/100*UnitConv -> 3.328553826e-07 | K54: =Data!L23*Parameters!$I$9/100*UnitConv -> 1.845025146e-10 | L54: =Data!M23*Parameters!$I$10/100*UnitConv -> 3.379482884e-09 | M54: =Data!AB23*Parameters!$I$25/100*UnitConv -> 0 | N54: =Data!N23*Parameters!$I$11/100*UnitConv -> 0 | O54: =Data!O23*Parameters!$I$12/100*UnitConv -> 0 | P54: =Data!P23*Parameters!$I$13/100*UnitConv -> 0 | Q54: =Data!Q23*Parameters!$I$14/100*UnitConv -> 0 | R54: =Data!R23*Parameters!$I$15/100*UnitConv -> 0 | S54: =Data!S23*Parameters!$I$16/100*UnitConv -> 0 | T54: =Data!T23*Parameters!$I$17/100*UnitConv -> 0 | U54: =Data!U23*Parameters!$I$18/100*UnitConv -> 0 | V54: =Data!V23*Parameters!$I$19/100*UnitConv -> 0 | W54: =Data!W23*Parameters!$I$20/100*UnitConv -> 0 | X54: =Data!X23*Parameters!$I$21/100*UnitConv -> 0 | Y54: =Data!Y23*Parameters!$I$22/100*UnitConv -> 0 | Z54: =Data!Z23*Parameters!$I$23/100*UnitConv -> 0 | AA54: =Data!AA23*Parameters!$I$24/100*UnitConv -> 0
C55: Iron | D55: 0.01734104277 | E55: =Data!F24*Parameters!$I$3/100*UnitConv -> 0.0002197066637 | F55: =Data!G24*Parameters!$I$4/100*UnitConv -> 0 | G55: =Data!H24*Parameters!$I$5/100*UnitConv -> 0.01708121867 | H55: =Data!I24*Parameters!$I$6/100*UnitConv -> 7.592982127e-08 | I55: =Data!J24*Parameters!$I$7/100*UnitConv -> 2.81942696e-05 | J55: =Data!K24*Parameters!$I$8/100*UnitConv -> 1.01267904e-05 | K55: =Data!L24*Parameters!$I$9/100*UnitConv -> 8.872064419e-08 | L55: =Data!M24*Parameters!$I$10/100*UnitConv -> 1.631723504e-06 | M55: =Data!AB24*Parameters!$I$25/100*UnitConv -> 0 | N55: =Data!N24*Parameters!$I$11/100*UnitConv -> 0 | O55: =Data!O24*Parameters!$I$12/100*UnitConv -> 0 | P55: =Data!P24*Parameters!$I$13/100*UnitConv -> 0 | Q55: =Data!Q24*Parameters!$I$14/100*UnitConv -> 0 | R55: =Data!R24*Parameters!$I$15/100*UnitConv -> 0 | S55: =Data!S24*Parameters!$I$16/100*UnitConv -> 0 | T55: =Data!T24*Parameters!$I$17/100*UnitConv -> 0 | U55: =Data!U24*Parameters!$I$18/100*UnitConv -> 0 | V55: =Data!V24*Parameters!$I$19/100*UnitConv -> 0 | W55: =Data!W24*Parameters!$I$20/100*UnitConv -> 0 | X55: =Data!X24*Parameters!$I$21/100*UnitConv -> 0 | Y55: =Data!Y24*Parameters!$I$22/100*UnitConv -> 0 | Z55: =Data!Z24*Parameters!$I$23/100*UnitConv -> 0 | AA55: =Data!AA24*Parameters!$I$24/100*UnitConv -> 0
C56: Lead (+II) | D56: -2.969182959e-06 | E56: =Data!F25*Parameters!$I$3/100*UnitConv -> 4.768224197e-07 | F56: =Data!G25*Parameters!$I$4/100*UnitConv -> 0 | G56: =Data!H25*Parameters!$I$5/100*UnitConv -> 1.970241702e-07 | H56: =Data!I25*Parameters!$I$6/100*UnitConv -> 1.853622848e-10 | I56: =Data!J25*Parameters!$I$7/100*UnitConv -> 8.207188651e-07 | J56: =Data!K25*Parameters!$I$8/100*UnitConv -> -4.46718962e-06 | K56: =Data!L25*Parameters!$I$9/100*UnitConv -> 1.988565647e-10 | L56: =Data!M25*Parameters!$I$10/100*UnitConv -> 3.056986856e-09 | M56: =Data!AB25*Parameters!$I$25/100*UnitConv -> 0 | N56: =Data!N25*Parameters!$I$11/100*UnitConv -> 0 | O56: =Data!O25*Parameters!$I$12/100*UnitConv -> 0 | P56: =Data!P25*Parameters!$I$13/100*UnitConv -> 0 | Q56: =Data!Q25*Parameters!$I$14/100*UnitConv -> 0 | R56: =Data!R25*Parameters!$I$15/100*UnitConv -> 0 | S56: =Data!S25*Parameters!$I$16/100*UnitConv -> 0 | T56: =Data!T25*Parameters!$I$17/100*UnitConv -> 0 | U56: =Data!U25*Parameters!$I$18/100*UnitConv -> 0 | V56: =Data!V25*Parameters!$I$19/100*UnitConv -> 0 | W56: =Data!W25*Parameters!$I$20/100*UnitConv -> 0 | X56: =Data!X25*Parameters!$I$21/100*UnitConv -> 0 | Y56: =Data!Y25*Parameters!$I$22/100*UnitConv -> 0 | Z56: =Data!Z25*Parameters!$I$23/100*UnitConv -> 0 | AA56: =Data!AA25*Parameters!$I$24/100*UnitConv -> 0
C57: Manganese (+II) | D57: 0.0002869262903 | E57: =Data!F26*Parameters!$I$3/100*UnitConv -> 0.0001987794791 | F57: =Data!G26*Parameters!$I$4/100*UnitConv -> 0 | G57: =Data!H26*Parameters!$I$5/100*UnitConv -> 4.899772775e-05 | H57: =Data!I26*Parameters!$I$6/100*UnitConv -> 6.023088975e-10 | I57: =Data!J26*Parameters!$I$7/100*UnitConv -> 3.70428284e-05 | J57: =Data!K26*Parameters!$I$8/100*UnitConv -> 1.981915815e-06 | K57: =Data!L26*Parameters!$I$9/100*UnitConv -> 6.429251569e-10 | L57: =Data!M26*Parameters!$I$10/100*UnitConv -> 1.230940476e-07 | M57: =Data!AB26*Parameters!$I$25/100*UnitConv -> 0 | N57: =Data!N26*Parameters!$I$11/100*UnitConv -> 0 | O57: =Data!O26*Parameters!$I$12/100*UnitConv -> 0 | P57: =Data!P26*Parameters!$I$13/100*UnitConv -> 0 | Q57: =Data!Q26*Parameters!$I$14/100*UnitConv -> 0 | R57: =Data!R26*Parameters!$I$15/100*UnitConv -> 0 | S57: =Data!S26*Parameters!$I$16/100*UnitConv -> 0 | T57: =Data!T26*Parameters!$I$17/100*UnitConv -> 0 | U57: =Data!U26*Parameters!$I$18/100*UnitConv -> 0 | V57: =Data!V26*Parameters!$I$19/100*UnitConv -> 0 | W57: =Data!W26*Parameters!$I$20/100*UnitConv -> 0 | X57: =Data!X26*Parameters!$I$21/100*UnitConv -> 0 | Y57: =Data!Y26*Parameters!$I$22/100*UnitConv -> 0 | Z57: =Data!Z26*Parameters!$I$23/100*UnitConv -> 0 | AA57: =Data!AA26*Parameters!$I$24/100*UnitConv -> 0
C58: Nickel (+II) | D58: 0.09989661524 | E58: =Data!F27*Parameters!$I$3/100*UnitConv -> 0.0007517095036 | F58: =Data!G27*Parameters!$I$4/100*UnitConv -> 0 | G58: =Data!H27*Parameters!$I$5/100*UnitConv -> 0.09910509881 | H58: =Data!I27*Parameters!$I$6/100*UnitConv -> 2.293892659e-09 | I58: =Data!J27*Parameters!$I$7/100*UnitConv -> 1.187584854e-06 | J58: =Data!K27*Parameters!$I$8/100*UnitConv -> 3.859899186e-05 | K58: =Data!L27*Parameters!$I$9/100*UnitConv -> 7.323217333e-09 | L58: =Data!M27*Parameters!$I$10/100*UnitConv -> 1.073568891e-08 | M58: =Data!AB27*Parameters!$I$25/100*UnitConv -> 0 | N58: =Data!N27*Parameters!$I$11/100*UnitConv -> 0 | O58: =Data!O27*Parameters!$I$12/100*UnitConv -> 0 | P58: =Data!P27*Parameters!$I$13/100*UnitConv -> 0 | Q58: =Data!Q27*Parameters!$I$14/100*UnitConv -> 0 | R58: =Data!R27*Parameters!$I$15/100*UnitConv -> 0 | S58: =Data!S27*Parameters!$I$16/100*UnitConv -> 0 | T58: =Data!T27*Parameters!$I$17/100*UnitConv -> 0 | U58: =Data!U27*Parameters!$I$18/100*UnitConv -> 0 | V58: =Data!V27*Parameters!$I$19/100*UnitConv -> 0 | W58: =Data!W27*Parameters!$I$20/100*UnitConv -> 0 | X58: =Data!X27*Parameters!$I$21/100*UnitConv -> 0 | Y58: =Data!Y27*Parameters!$I$22/100*UnitConv -> 0 | Z58: =Data!Z27*Parameters!$I$23/100*UnitConv -> 0 | AA58: =Data!AA27*Parameters!$I$24/100*UnitConv -> 0
C59: Strontium | D59: 0.0004423528482 | E59: =Data!F28*Parameters!$I$3/100*UnitConv -> 0.0004379913221 | F59: =Data!G28*Parameters!$I$4/100*UnitConv -> 0 | G59: =Data!H28*Parameters!$I$5/100*UnitConv -> 3.789552063e-07 | H59: =Data!I28*Parameters!$I$6/100*UnitConv -> 1.412368736e-09 | I59: =Data!J28*Parameters!$I$7/100*UnitConv -> 3.394113711e-06 | J59: =Data!K28*Parameters!$I$8/100*UnitConv -> 5.80269045e-07 | K59: =Data!L28*Parameters!$I$9/100*UnitConv -> 1.969814977e-09 | L59: =Data!M28*Parameters!$I$10/100*UnitConv -> 4.805990844e-09 | M59: =Data!AB28*Parameters!$I$25/100*UnitConv -> 0 | N59: =Data!N28*Parameters!$I$11/100*UnitConv -> 0 | O59: =Data!O28*Parameters!$I$12/100*UnitConv -> 0 | P59: =Data!P28*Parameters!$I$13/100*UnitConv -> 0 | Q59: =Data!Q28*Parameters!$I$14/100*UnitConv -> 0 | R59: =Data!R28*Parameters!$I$15/100*UnitConv -> 0 | S59: =Data!S28*Parameters!$I$16/100*UnitConv -> 0 | T59: =Data!T28*Parameters!$I$17/100*UnitConv -> 0 | U59: =Data!U28*Parameters!$I$18/100*UnitConv -> 0 | V59: =Data!V28*Parameters!$I$19/100*UnitConv -> 0 | W59: =Data!W28*Parameters!$I$20/100*UnitConv -> 0 | X59: =Data!X28*Parameters!$I$21/100*UnitConv -> 0 | Y59: =Data!Y28*Parameters!$I$22/100*UnitConv -> 0 | Z59: =Data!Z28*Parameters!$I$23/100*UnitConv -> 0 | AA59: =Data!AA28*Parameters!$I$24/100*UnitConv -> 0
C60: Zinc (+II) | D60: 0.01300612033 | E60: =Data!F29*Parameters!$I$3/100*UnitConv -> 0.0001253534665 | F60: =Data!G29*Parameters!$I$4/100*UnitConv -> 0 | G60: =Data!H29*Parameters!$I$5/100*UnitConv -> 0.01287345503 | H60: =Data!I29*Parameters!$I$6/100*UnitConv -> 3.893235519e-10 | I60: =Data!J29*Parameters!$I$7/100*UnitConv -> 4.860591096e-07 | J60: =Data!K29*Parameters!$I$8/100*UnitConv -> 6.822420652e-06 | K60: =Data!L29*Parameters!$I$9/100*UnitConv -> 1.146960891e-09 | L60: =Data!M29*Parameters!$I$10/100*UnitConv -> 1.812588668e-09 | M60: =Data!AB29*Parameters!$I$25/100*UnitConv -> 0 | N60: =Data!N29*Parameters!$I$11/100*UnitConv -> 0 | O60: =Data!O29*Parameters!$I$12/100*UnitConv -> 0 | P60: =Data!P29*Parameters!$I$13/100*UnitConv -> 0 | Q60: =Data!Q29*Parameters!$I$14/100*UnitConv -> 0 | R60: =Data!R29*Parameters!$I$15/100*UnitConv -> 0 | S60: =Data!S29*Parameters!$I$16/100*UnitConv -> 0 | T60: =Data!T29*Parameters!$I$17/100*UnitConv -> 0 | U60: =Data!U29*Parameters!$I$18/100*UnitConv -> 0 | V60: =Data!V29*Parameters!$I$19/100*UnitConv -> 0 | W60: =Data!W29*Parameters!$I$20/100*UnitConv -> 0 | X60: =Data!X29*Parameters!$I$21/100*UnitConv -> 0 | Y60: =Data!Y29*Parameters!$I$22/100*UnitConv -> 0 | Z60: =Data!Z29*Parameters!$I$23/100*UnitConv -> 0 | AA60: =Data!AA29*Parameters!$I$24/100*UnitConv -> 0
C61: Ammonium/ammonia | D61: 0.002872974686 | E61: =Data!F30*Parameters!$I$3/100*UnitConv -> 0.0002957419862 | F61: =Data!G30*Parameters!$I$4/100*UnitConv -> 0 | G61: =Data!H30*Parameters!$I$5/100*UnitConv -> 0.002177133246 | H61: =Data!I30*Parameters!$I$6/100*UnitConv -> 2.185548021e-09 | I61: =Data!J30*Parameters!$I$7/100*UnitConv -> 4.418743806e-06 | J61: =Data!K30*Parameters!$I$8/100*UnitConv -> 0.0003956612142 | K61: =Data!L30*Parameters!$I$9/100*UnitConv -> 2.146082058e-09 | L61: =Data!M30*Parameters!$I$10/100*UnitConv -> 1.516401494e-08 | M61: =Data!AB30*Parameters!$I$25/100*UnitConv -> 0 | N61: =Data!N30*Parameters!$I$11/100*UnitConv -> 0 | O61: =Data!O30*Parameters!$I$12/100*UnitConv -> 0 | P61: =Data!P30*Parameters!$I$13/100*UnitConv -> 0 | Q61: =Data!Q30*Parameters!$I$14/100*UnitConv -> 0 | R61: =Data!R30*Parameters!$I$15/100*UnitConv -> 0 | S61: =Data!S30*Parameters!$I$16/100*UnitConv -> 0 | T61: =Data!T30*Parameters!$I$17/100*UnitConv -> 0 | U61: =Data!U30*Parameters!$I$18/100*UnitConv -> 0 | V61: =Data!V30*Parameters!$I$19/100*UnitConv -> 0 | W61: =Data!W30*Parameters!$I$20/100*UnitConv -> 0 | X61: =Data!X30*Parameters!$I$21/100*UnitConv -> 0 | Y61: =Data!Y30*Parameters!$I$22/100*UnitConv -> 0 | Z61: =Data!Z30*Parameters!$I$23/100*UnitConv -> 0 | AA61: =Data!AA30*Parameters!$I$24/100*UnitConv -> 0
C62: Hydrogen chloride | D62: 1.059940367e-08 | E62: =Data!F31*Parameters!$I$3/100*UnitConv -> 8.740100579e-09 | F62: =Data!G31*Parameters!$I$4/100*UnitConv -> 0 | G62: =Data!H31*Parameters!$I$5/100*UnitConv -> 1.236248673e-09 | H62: =Data!I31*Parameters!$I$6/100*UnitConv -> 9.315933741e-13 | I62: =Data!J31*Parameters!$I$7/100*UnitConv -> 3.83460111e-10 | J62: =Data!K31*Parameters!$I$8/100*UnitConv -> 1.69316212e-10 | K62: =Data!L31*Parameters!$I$9/100*UnitConv -> 8.366121083e-13 | L62: =Data!M31*Parameters!$I$10/100*UnitConv -> 6.85098857e-11 | M62: =Data!AB31*Parameters!$I$25/100*UnitConv -> 0 | N62: =Data!N31*Parameters!$I$11/100*UnitConv -> 0 | O62: =Data!O31*Parameters!$I$12/100*UnitConv -> 0 | P62: =Data!P31*Parameters!$I$13/100*UnitConv -> 0 | Q62: =Data!Q31*Parameters!$I$14/100*UnitConv -> 0 | R62: =Data!R31*Parameters!$I$15/100*UnitConv -> 0 | S62: =Data!S31*Parameters!$I$16/100*UnitConv -> 0 | T62: =Data!T31*Parameters!$I$17/100*UnitConv -> 0 | U62: =Data!U31*Parameters!$I$18/100*UnitConv -> 0 | V62: =Data!V31*Parameters!$I$19/100*UnitConv -> 0 | W62: =Data!W31*Parameters!$I$20/100*UnitConv -> 0 | X62: =Data!X31*Parameters!$I$21/100*UnitConv -> 0 | Y62: =Data!Y31*Parameters!$I$22/100*UnitConv -> 0 | Z62: =Data!Z31*Parameters!$I$23/100*UnitConv -> 0 | AA62: =Data!AA31*Parameters!$I$24/100*UnitConv -> 0
C63: Nitrogen (as total N) | D63: -4.766703657e-06 | E63: =Data!F32*Parameters!$I$3/100*UnitConv -> 1.449863034e-05 | F63: =Data!G32*Parameters!$I$4/100*UnitConv -> 0 | G63: =Data!H32*Parameters!$I$5/100*UnitConv -> 2.565552092e-06 | H63: =Data!I32*Parameters!$I$6/100*UnitConv -> 8.985390882e-11 | I63: =Data!J32*Parameters!$I$7/100*UnitConv -> 3.742788499e-09 | J63: =Data!K32*Parameters!$I$8/100*UnitConv -> -2.194411513e-05 | K63: =Data!L32*Parameters!$I$9/100*UnitConv -> 1.780676568e-10 | L63: =Data!M32*Parameters!$I$10/100*UnitConv -> 1.092183276e-07 | M63: =Data!AB32*Parameters!$I$25/100*UnitConv -> 0 | N63: =Data!N32*Parameters!$I$11/100*UnitConv -> 0 | O63: =Data!O32*Parameters!$I$12/100*UnitConv -> 0 | P63: =Data!P32*Parameters!$I$13/100*UnitConv -> 0 | Q63: =Data!Q32*Parameters!$I$14/100*UnitConv -> 0 | R63: =Data!R32*Parameters!$I$15/100*UnitConv -> 0 | S63: =Data!S32*Parameters!$I$16/100*UnitConv -> 0 | T63: =Data!T32*Parameters!$I$17/100*UnitConv -> 0 | U63: =Data!U32*Parameters!$I$18/100*UnitConv -> 0 | V63: =Data!V32*Parameters!$I$19/100*UnitConv -> 0 | W63: =Data!W32*Parameters!$I$20/100*UnitConv -> 0 | X63: =Data!X32*Parameters!$I$21/100*UnitConv -> 0 | Y63: =Data!Y32*Parameters!$I$22/100*UnitConv -> 0 | Z63: =Data!Z32*Parameters!$I$23/100*UnitConv -> 0 | AA63: =Data!AA32*Parameters!$I$24/100*UnitConv -> 0
C64: Phosphate | D64: 1.199849225e-05 | E64: =Data!F33*Parameters!$I$3/100*UnitConv -> 2.25191476e-06 | F64: =Data!G33*Parameters!$I$4/100*UnitConv -> 0 | G64: =Data!H33*Parameters!$I$5/100*UnitConv -> 8.363290762e-07 | H64: =Data!I33*Parameters!$I$6/100*UnitConv -> 1.272380966e-09 | I64: =Data!J33*Parameters!$I$7/100*UnitConv -> 8.246176561e-06 | J64: =Data!K33*Parameters!$I$8/100*UnitConv -> 6.525963724e-07 | K64: =Data!L33*Parameters!$I$9/100*UnitConv -> 1.136891526e-09 | L64: =Data!M33*Parameters!$I$10/100*UnitConv -> 9.066203098e-09 | M64: =Data!AB33*Parameters!$I$25/100*UnitConv -> 0 | N64: =Data!N33*Parameters!$I$11/100*UnitConv -> 0 | O64: =Data!O33*Parameters!$I$12/100*UnitConv -> 0 | P64: =Data!P33*Parameters!$I$13/100*UnitConv -> 0 | Q64: =Data!Q33*Parameters!$I$14/100*UnitConv -> 0 | R64: =Data!R33*Parameters!$I$15/100*UnitConv -> 0 | S64: =Data!S33*Parameters!$I$16/100*UnitConv -> 0 | T64: =Data!T33*Parameters!$I$17/100*UnitConv -> 0 | U64: =Data!U33*Parameters!$I$18/100*UnitConv -> 0 | V64: =Data!V33*Parameters!$I$19/100*UnitConv -> 0 | W64: =Data!W33*Parameters!$I$20/100*UnitConv -> 0 | X64: =Data!X33*Parameters!$I$21/100*UnitConv -> 0 | Y64: =Data!Y33*Parameters!$I$22/100*UnitConv -> 0 | Z64: =Data!Z33*Parameters!$I$23/100*UnitConv -> 0 | AA64: =Data!AA33*Parameters!$I$24/100*UnitConv -> 0
C65: Phosphorus | D65: 0.0002406771104 | E65: =Data!F34*Parameters!$I$3/100*UnitConv -> 5.781822574e-06 | F65: =Data!G34*Parameters!$I$4/100*UnitConv -> 0 | G65: =Data!H34*Parameters!$I$5/100*UnitConv -> 0.0002351332998 | H65: =Data!I34*Parameters!$I$6/100*UnitConv -> 3.156544548e-10 | I65: =Data!J34*Parameters!$I$7/100*UnitConv -> 3.150325993e-08 | J65: =Data!K34*Parameters!$I$8/100*UnitConv -> -2.771128469e-07 | K65: =Data!L34*Parameters!$I$9/100*UnitConv -> 2.849529238e-10 | L65: =Data!M34*Parameters!$I$10/100*UnitConv -> 6.997040065e-09 | M65: =Data!AB34*Parameters!$I$25/100*UnitConv -> 0 | N65: =Data!N34*Parameters!$I$11/100*UnitConv -> 0 | O65: =Data!O34*Parameters!$I$12/100*UnitConv -> 0 | P65: =Data!P34*Parameters!$I$13/100*UnitConv -> 0 | Q65: =Data!Q34*Parameters!$I$14/100*UnitConv -> 0 | R65: =Data!R34*Parameters!$I$15/100*UnitConv -> 0 | S65: =Data!S34*Parameters!$I$16/100*UnitConv -> 0 | T65: =Data!T34*Parameters!$I$17/100*UnitConv -> 0 | U65: =Data!U34*Parameters!$I$18/100*UnitConv -> 0 | V65: =Data!V34*Parameters!$I$19/100*UnitConv -> 0 | W65: =Data!W34*Parameters!$I$20/100*UnitConv -> 0 | X65: =Data!X34*Parameters!$I$21/100*UnitConv -> 0 | Y65: =Data!Y34*Parameters!$I$22/100*UnitConv -> 0 | Z65: =Data!Z34*Parameters!$I$23/100*UnitConv -> 0 | AA65: =Data!AA34*Parameters!$I$24/100*UnitConv -> 0
B66: ="Resource Energy (MJ/MWh)" -> Resource Energy (MJ/MWh) | C66: Crude oil | D66: 174.6638397 | E66: =Data!F35*Parameters!$I$3/100 -> 32.13722854 | F66: =Data!G35*Parameters!$I$4/100 -> 1.152556691 | G66: =Data!H35*Parameters!$I$5/100 -> 9.146539268 | H66: =Data!I35*Parameters!$I$6/100 -> 0.005319761214 | I66: =Data!J35*Parameters!$I$7/100 -> 127.6502598 | J66: =Data!K35*Parameters!$I$8/100 -> 4.456063337 | K66: =Data!L35*Parameters!$I$9/100 -> 0.02556756203 | L66: =Data!M35*Parameters!$I$10/100 -> 0.09030482316 | M66: =Data!AB35*Parameters!$I$25/100 -> 0 | N66: =Data!N35*Parameters!$I$11/100 -> 0 | O66: =Data!O35*Parameters!$I$12/100 -> 0 | P66: =Data!P35*Parameters!$I$13/100 -> 0 | Q66: =Data!Q35*Parameters!$I$14/100 -> 0 | R66: =Data!R35*Parameters!$I$15/100 -> 0 | S66: =Data!S35*Parameters!$I$16/100 -> 0 | T66: =Data!T35*Parameters!$I$17/100 -> 0 | U66: =Data!U35*Parameters!$I$18/100 -> 0 | V66: =Data!V35*Parameters!$I$19/100 -> 0 | W66: =Data!W35*Parameters!$I$20/100 -> 0 | X66: =Data!X35*Parameters!$I$21/100 -> 0 | Y66: =Data!Y35*Parameters!$I$22/100 -> 0 | Z66: =Data!Z35*Parameters!$I$23/100 -> 0 | AA66: =Data!AA35*Parameters!$I$24/100 -> 0
C67: Hard coal | D67: 4228.184016 | E67: =Data!F36*Parameters!$I$3/100 -> 4163.037446 | F67: =Data!G36*Parameters!$I$4/100 -> 5.150588702 | G67: =Data!H36*Parameters!$I$5/100 -> 55.69295637 | H67: =Data!I36*Parameters!$I$6/100 -> 0.02306273084 | I67: =Data!J36*Parameters!$I$7/100 -> 2.013222264 | J67: =Data!K36*Parameters!$I$8/100 -> 2.132578275 | K67: =Data!L36*Parameters!$I$9/100 -> 0.02933687717 | L67: =Data!M36*Parameters!$I$10/100 -> 0.1048250336 | M67: =Data!AB36*Parameters!$I$25/100 -> 0 | N67: =Data!N36*Parameters!$I$11/100 -> 0 | O67: =Data!O36*Parameters!$I$12/100 -> 0 | P67: =Data!P36*Parameters!$I$13/100 -> 0 | Q67: =Data!Q36*Parameters!$I$14/100 -> 0 | R67: =Data!R36*Parameters!$I$15/100 -> 0 | S67: =Data!S36*Parameters!$I$16/100 -> 0 | T67: =Data!T36*Parameters!$I$17/100 -> 0 | U67: =Data!U36*Parameters!$I$18/100 -> 0 | V67: =Data!V36*Parameters!$I$19/100 -> 0 | W67: =Data!W36*Parameters!$I$20/100 -> 0 | X67: =Data!X36*Parameters!$I$21/100 -> 0 | Y67: =Data!Y36*Parameters!$I$22/100 -> 0 | Z67: =Data!Z36*Parameters!$I$23/100 -> 0 | AA67: =Data!AA36*Parameters!$I$24/100 -> 0
C68: Lignite | D68: 0.4942080424 | E68: =Data!F37*Parameters!$I$3/100 -> 0.1280257931 | F68: =Data!G37*Parameters!$I$4/100 -> 0.001557170321 | G68: =Data!H37*Parameters!$I$5/100 -> 0.1031109609 | H68: =Data!I37*Parameters!$I$6/100 -> 0.001713557149 | I68: =Data!J37*Parameters!$I$7/100 -> 0.1622778318 | J68: =Data!K37*Parameters!$I$8/100 -> 0.09460587505 | K68: =Data!L37*Parameters!$I$9/100 -> 0.001323898274 | L68: =Data!M37*Parameters!$I$10/100 -> 0.001592955792 | M68: =Data!AB37*Parameters!$I$25/100 -> 0 | N68: =Data!N37*Parameters!$I$11/100 -> 0 | O68: =Data!O37*Parameters!$I$12/100 -> 0 | P68: =Data!P37*Parameters!$I$13/100 -> 0 | Q68: =Data!Q37*Parameters!$I$14/100 -> 0 | R68: =Data!R37*Parameters!$I$15/100 -> 0 | S68: =Data!S37*Parameters!$I$16/100 -> 0 | T68: =Data!T37*Parameters!$I$17/100 -> 0 | U68: =Data!U37*Parameters!$I$18/100 -> 0 | V68: =Data!V37*Parameters!$I$19/100 -> 0 | W68: =Data!W37*Parameters!$I$20/100 -> 0 | X68: =Data!X37*Parameters!$I$21/100 -> 0 | Y68: =Data!Y37*Parameters!$I$22/100 -> 0 | Z68: =Data!Z37*Parameters!$I$23/100 -> 0 | AA68: =Data!AA37*Parameters!$I$24/100 -> 0
C69: Natural gas | D69: 2289.053867 | E69: =Data!F38*Parameters!$I$3/100 -> 12.0409297 | F69: =Data!G38*Parameters!$I$4/100 -> 2110.105994 | G69: =Data!H38*Parameters!$I$5/100 -> 150.462077 | H69: =Data!I38*Parameters!$I$6/100 -> 0.005852683967 | I69: =Data!J38*Parameters!$I$7/100 -> 13.63456762 | J69: =Data!K38*Parameters!$I$8/100 -> 2.585764643 | K69: =Data!L38*Parameters!$I$9/100 -> 0.0115015307 | L69: =Data!M38*Parameters!$I$10/100 -> 0.207179905 | M69: =Data!AB38*Parameters!$I$25/100 -> 0 | N69: =Data!N38*Parameters!$I$11/100 -> 0 | O69: =Data!O38*Parameters!$I$12/100 -> 0 | P69: =Data!P38*Parameters!$I$13/100 -> 0 | Q69: =Data!Q38*Parameters!$I$14/100 -> 0 | R69: =Data!R38*Parameters!$I$15/100 -> 0 | S69: =Data!S38*Parameters!$I$16/100 -> 0 | T69: =Data!T38*Parameters!$I$17/100 -> 0 | U69: =Data!U38*Parameters!$I$18/100 -> 0 | V69: =Data!V38*Parameters!$I$19/100 -> 0 | W69: =Data!W38*Parameters!$I$20/100 -> 0 | X69: =Data!X38*Parameters!$I$21/100 -> 0 | Y69: =Data!Y38*Parameters!$I$22/100 -> 0 | Z69: =Data!Z38*Parameters!$I$23/100 -> 0 | AA69: =Data!AA38*Parameters!$I$24/100 -> 0
C70: Uranium | D70: 2.55998915 | E70: =Data!F39*Parameters!$I$3/100 -> 0.5647606523 | F70: =Data!G39*Parameters!$I$4/100 -> 0.009102747138 | G70: =Data!H39*Parameters!$I$5/100 -> 0.9557321455 | H70: =Data!I39*Parameters!$I$6/100 -> 0.003038515852 | I70: =Data!J39*Parameters!$I$7/100 -> 0.7767323662 | J70: =Data!K39*Parameters!$I$8/100 -> 0.2401556534 | K70: =Data!L39*Parameters!$I$9/100 -> 0.002520613403 | L70: =Data!M39*Parameters!$I$10/100 -> 0.007946456374 | M70: =Data!AB39*Parameters!$I$25/100 -> 0 | N70: =Data!N39*Parameters!$I$11/100 -> 0 | O70: =Data!O39*Parameters!$I$12/100 -> 0 | P70: =Data!P39*Parameters!$I$13/100 -> 0 | Q70: =Data!Q39*Parameters!$I$14/100 -> 0 | R70: =Data!R39*Parameters!$I$15/100 -> 0 | S70: =Data!S39*Parameters!$I$16/100 -> 0 | T70: =Data!T39*Parameters!$I$17/100 -> 0 | U70: =Data!U39*Parameters!$I$18/100 -> 0 | V70: =Data!V39*Parameters!$I$19/100 -> 0 | W70: =Data!W39*Parameters!$I$20/100 -> 0 | X70: =Data!X39*Parameters!$I$21/100 -> 0 | Y70: =Data!Y39*Parameters!$I$22/100 -> 0 | Z70: =Data!Z39*Parameters!$I$23/100 -> 0 | AA70: =Data!AA39*Parameters!$I$24/100 -> 0
C71: Total resource energy | D71: 25508.05019 | E71: =Data!F40*Parameters!$I$3/100 -> 4207.908391 | F71: =Data!G40*Parameters!$I$4/100 -> 2116.419799 | G71: =Data!H40*Parameters!$I$5/100 -> 216.3604157 | H71: =Data!I40*Parameters!$I$6/100 -> 0.03898724902 | I71: =Data!J40*Parameters!$I$3/100 -> 5610.821628 | J71: =Data!K40*Parameters!$I$8/100 -> 9.509167783 | K71: =Data!L40*Parameters!$I$9/100 -> 0.07025048157 | L71: =Data!M40*Parameters!$I$10/100 -> 0.4118491739 | M71: =Data!AB40*Parameters!$I$25/100 -> 0 | N71: =Data!N40*Parameters!$I$11/100 -> 0 | O71: =Data!O40*Parameters!$I$3/100 -> 5241.899227 | P71: =Data!P40*Parameters!$I$3/100 -> 3029.256211 | Q71: =Data!Q40*Parameters!$I$14/100 -> 0 | R71: =Data!R40*Parameters!$I$15/100 -> 0 | S71: =Data!S40*Parameters!$I$3/100 -> 4741.650746 | T71: =Data!T40*Parameters!$I$17/100 -> 0 | U71: =Data!U40*Parameters!$I$3/100 -> 333.7035162 | V71: =Data!V40*Parameters!$I$19/100 -> 0 | W71: =Data!W40*Parameters!$I$20/100 -> 0 | X71: =Data!X40*Parameters!$I$21/100 -> 0 | Y71: =Data!Y40*Parameters!$I$22/100 -> 0 | Z71: =Data!Z40*Parameters!$I$23/100 -> 0 | AA71: =Data!AA40*Parameters!$I$24/100 -> 0

Sheet Data
A1: Data is delieverd not busbar | D1: Category (Units) | E1: Material or Energy Flow | F1: Current | N1: New/Future
F2: Fleet Coal | G2: Fleet Natural Gas | H2: Existing Nuclear | I2: Existing Hydro | J2: Petroleum | K2: Onshore Wind | L2: Geothermal | M2: Solar Thermal | N2: SCPC | O2: SCPC/CCS | P2: NGCC | Q2: NGCC/CCS | R2: IGCC | S2: IGCC/CCS | T2: Gen III+ Nuclear | U2: Existing Nuclear w/ Centrifuge Enrich | V2: Gen III+ Nuclear w/ Centrifuge Enrich | W2: Greenfield Hydro | X2: Power Addition Hydro | Y2: Power Upgrade Hydro | Z2: Advanced Onshore Wind | AA2: Offshore Wind | AB2: Solar PV
C3: 1 | D3: GHG (kg/MWh) | E3: CO₂ | F3: 1073.911044 | G3: 505.8691381 | H3: 6.952255175 | I3: 16.91420564 | J3: 1124.382636 | K3: 17.36814096 | L3: 117.7782303 | M3: 38.18524642 | N3: 883.6051581 | O3: 179.2390176 | P3: 415.148149 | Q3: 84.03399687 | R3: 855.3033455 | S3: 118.2716406 | T3: 5.143788194 | U3: 6.952255175 | V3: 5.143788194 | W3: 20.64798813 | X3: 18.14875977 | Y3: 17.4463537 | Z3: 14.37094972 | AA3: 31.29739259 | AB3: =45/0.93 -> 48.38709677
C4: 298 | E4: N₂O | F4: 0.02326098866 | G4: 0.001113933325 | H4: 0.0001545737634 | I4: 3.567483831e-07 | J4: 0.01532183574 | K4: 0.0003549377104 | L4: 2.225956793e-05 | M4: 0.00161065689 | N4: 0.005960503092 | O4: 0.007643175151 | P4: 0.0002547726846 | Q4: 0.0003469357692 | R4: 0.0002950618269 | S4: 0.0003520235465 | T4: 9.136929133e-05 | U4: 0.0001545737634 | V4: 9.136929133e-05 | W4: 1.051898787e-05 | X4: 1.411572301e-06 | Y4: 5.327153495e-07 | Z4: 0.0002569995977 | AA4: 0.0002142123074
C5: 36 | E5: CH₄ | F5: 0.398663495 | G5: 1.621101033 | H5: 0.03414640087 | I5: 0.2331060035 | J5: 1.333061772 | K5: 0.0227678001 | L5: 0.2179400146 | M5: 0.09022788556 | N5: 2.510792551 | O5: 3.168967359 | P5: 1.912816087 | Q5: 2.164657995 | R5: 3.288637402 | S5: 3.927292666 | T5: 0.02032585619 | U5: 0.03414640087 | V5: 0.02032585619 | W5: 0.2374052393 | X5: 0.2337848912 | Y5: 0.2332192563 | Z5: 0.02839548897 | AA5: 0.03841410779
C6: 23500 | E6: SF₆ | F6: 0.0001433240554 | G6: 0.0001433240554 | H6: 0.0001433240554 | I6: 0.0001433240554 | J6: 0.0001433240554 | K6: 0.0001433240554 | L6: 0.0001433240554 | M6: 0.0001433240554 | N6: 0.0001433240554 | O6: 0.0001433240554 | P6: 0.0001433240554 | Q6: 0.0001433240554 | R6: 0.0001433240554 | S6: 0.0001433240554 | T6: 0.0001433240554 | U6: 0.0001433240554 | V6: 0.0001433240554 | W6: 0.0001433240554 | X6: 0.0001433240554 | Y6: 0.0001433240554 | Z6: 0.0001433240554 | AA6: 0.0001433240554
E7: CO₂e (IPCC 2013 100-yr GWP) | F7: =SUMPRODUCT(F3:F6,$C$3:$C$6) -> 1098.56282 | G7: =SUMPRODUCT(G3:G6,$C$3:$C$6) -> 567.9288428 | H7: 11.59570389 | I7: 28.67424338 | J7: 1180.306883 | K7: 21.6616685 | L7: 128.9988195 | M7: 45.28154135 | N7: 979.1380351 | O7: 298.967624 | P7: 487.4535657 | Q7: 165.4331868 | R7: 977.1503357 | S7: 263.1271949 | T7: 9.270862367 | U7: 11.59570389 | V7: 9.270862367 | W7: 32.56582671 | X7: 29.9335518 | Y7: 29.21052098 | Z7: 18.8378885 | AA7: 36.11225104
D8: Other Air (kg/MWh) | E8: Pb | F8: 2.477927085e-05 | G8: 1.62178549e-06 | H8: 8.809532258e-07 | I8: 3.020617695e-08 | J8: 0.0007539190686 | K8: -8.297856455e-06 | L8: 1.036740097e-06 | M8: 2.342100187e-05 | N8: 1.601050953e-05 | O8: 2.135598552e-05 | P8: 1.644294135e-06 | Q8: 2.488876934e-06 | R8: 5.222618085e-06 | S8: 8.049194487e-06 | T8: 4.221870902e-07 | U8: 8.809532258e-07 | V8: 4.221870902e-07 | W8: 5.048050781e-07 | X8: 4.041508622e-07 | Y8: 9.25880691e-08 | Z8: 1.659788133e-06 | AA8: 1.145490271e-05
E9: Hg | F9: 7.388270637e-09 | G9: 0 | H9: 4.101778874e-12 | I9: 4.052116963e-15 | J9: 0 | K9: 1.142442762e-13 | L9: 1.790845283e-13 | M9: 3.932716516e-13 | N9: 1.556563104e-06 | O9: 1.732263284e-06 | P9: 6.523444351e-12 | Q9: 7.358268985e-12 | R9: 2.701691936e-06 | S9: 5.065253359e-06 | T9: 2.662715483e-12 | U9: 4.101778874e-12 | V9: 2.662715483e-12 | W9: 3.007301529e-12 | X9: 4.052116963e-15 | Y9: 4.052116963e-15 | Z9: 1.138094639e-13 | AA9: 1.079639038e-13
E10: NH₃ | F10: 0.005577793337 | G10: 0.0148309545 | H10: 0.003197943105 | I10: 1.135804971e-07 | J10: 0.003483043156 | K10: 0.0005291711368 | L10: 0.2283262646 | M10: 6.316941872e-05 | N10: 0.002632099869 | O10: 0.003502529116 | P10: 0.0001254263365 | Q10: 0.0001803024428 | R10: 0.0001945509414 | S10: 0.0002322046733 | T10: 0.00187100954 | U10: 0.003197943105 | V10: 0.00187100954 | W10: 7.771192122e-06 | X10: 1.135804971e-07 | Y10: 1.135804971e-07 | Z10: 0.0003341528 | AA10: 0.0002302798544
E11: CO | F11: 0.4274518563 | G11: 0.1864895913 | H11: 0.02707409441 | I11: 0.0002359175364 | J11: 0.555924123 | K11: 0.04684135847 | L11: 0.02638938621 | M11: 0.7132173276 | N11: 0.1643929773 | O11: 0.2101295761 | P11: 0.06620474211 | Q11: 0.07697291149 | R11: 0.02646278035 | S11: 0.03135449993 | T11: 0.02003816548 | U11: 0.02707409441 | V11: 0.02003816548 | W11: 0.01242469585 | X11: 0.003696325818 | Y11: 0.0007602492783 | Z11: 0.05103251676 | AA11: 0.1565794479
E12: NOX | F12: 1.162991701 | G12: 0.9533623366 | H12: 0.07552732939 | I12: 5.583574391e-05 | J12: 2.509169047 | K12: 0.03803871305 | L12: 0.01238657861 | M12: 0.09074115864 | N12: 0.5835410139 | O12: 0.6947992852 | P12: 0.589547139 | Q12: 0.6672425222 | R12: 0.2808392686 | S12: 0.2819299427 | T12: 0.05964259049 | U12: 0.07552732939 | V12: 0.05964259049 | W12: 0.01128570498 | X12: 0.001221451422 | Y12: 0.0001595290618 | Z12: 0.02558358643 | AA12: 0.175032393
E13: SO₂ | F13: 2.535640423 | G13: 1.690653432 | H13: 0.01313343404 | I13: 7.253353521e-05 | J13: 6.740381284 | K13: 0.01620690557 | L13: 0.002362384817 | M13: 0.07892188461 | N13: 0.438557768 | O13: 0.1304434476 | P13: 1.819621828 | Q13: 2.05482638 | R13: 0.03841666594 | S13: 0.05043410245 | T13: 0.01005039782 | U13: 0.01313343404 | V13: 0.01005039782 | W13: 0.002565114625 | X13: 0.0005357469705 | Y13: 0.0001498073452 | Z13: 0.0224964752 | AA13: 0.03695263952
E14: VOC | F14: 0.02634155903 | G14: 0.3427552001 | H14: 0.002298590144 | I14: 6.380473371e-06 | J14: 0.344501012 | K14: 0.001130455883 | L14: 0.000299086115 | M14: 0.008754255991 | N14: 0.02008054882 | O14: 0.02645245852 | P14: 0.4997861044 | Q14: 0.5640566476 | R14: 0.006228501145 | S14: 0.00736114601 | T14: 0.002743075955 | U14: 0.002298590144 | V14: 0.002743075955 | W14: 0.0002244902253 | X14: 4.175995186e-05 | Y14: 1.228251958e-05 | Z14: 0.001101453532 | AA14: 0.001704709203
E15: PM | F15: 0.1864924844 | G15: 0.002429065755 | H15: 0.01360774187 | I15: 4.340177687e-08 | J15: 0 | K15: 0.001183915427 | L15: 0.0001346912549 | M15: 0.0003952280301 | N15: 0.01603243693 | O15: 0.0218181244 | P15: 0.002063093622 | Q15: 0.003031978333 | R15: 0.04705628317 | S15: 0.02442949331 | T15: 0.008584339984 | U15: 0.01360774187 | V15: 0.008584339984 | W15: 0.003565716028 | X15: 4.535903365e-05 | Y15: 4.340177687e-08 | Z15: 0.0009692341943 | AA15: 0.0007522483333
D16: Solid Waste (kg/MWh) | E16: Heavy metals to industrial soil | F16: 0.1816142647 | G16: 0 | H16: 47.52261353 | I16: 2.668970792e-06 | J16: 3.926773538e-07 | K16: 0.08107112334 | L16: 0.0001659991708 | M16: 0.0006500023979 | N16: 0.3806767815 | O16: 0.5949521199 | P16: 0.02626461427 | Q16: 0.0781042608 | R16: 0.05567956636 | S16: 0.06643533847 | T16: 27.76888154 | U16: 47.52261353 | V16: 27.76888154 | W16: 0.001980785292 | X16: 2.668970792e-06 | Y16: 2.668970792e-06 | Z16: 0.06567891016 | AA16: 0.05106120192
E17: Heavy metals to agricultural soil | F17: 5.889025989e-08 | G17: 0 | H17: 8.037139792e-07 | I17: -1.503892161e-10 | J17: 5.050904928e-05 | K17: 3.086072428e-07 | L17: -1.976484555e-09 | M17: 4.456229016e-08 | N17: 1.09919324e-07 | O17: 3.611708969e-07 | P17: 4.726069646e-10 | Q17: 5.793173553e-09 | R17: 2.132887231e-08 | S17: 2.54007857e-08 | T17: 4.681632155e-07 | U17: 8.037139792e-07 | V17: 4.681632155e-07 | W17: 1.171716099e-10 | X17: -1.503892161e-10 | Y17: -1.503892161e-10 | Z17: 3.363365969e-07 | AA17: 1.2538524e-07
D18: Water Use (L/MWh) | E18: Withdrawal | F18: 1604.566236 | G18: 195.0578912 | H18: 111841.7227 | I18: 68282.05786 | J18: 42322.24614 | K18: 3923.926723 | L18: 2369.969587 | M18: 3686.126199 | N18: 4153.383886 | O18: 7257.118371 | P18: 1401.760816 | Q18: 2338.608939 | R18: 3270.935265 | S18: 4289.049631 | T18: 4675.486251 | U18: 111841.7227 | V18: 4675.486251 | W18: 69887.3272 | X18: 68284.9579 | Y18: 68282.54165 | Z18: 3958.298062 | AA18: 3772.036744
E19: Discharge | F19: 561.2661922 | G19: 11.47377355 | H19: 109101.4073 | I19: 141.8255701 | J19: 39775.21072 | K19: 3540.738179 | L19: 2222.841847 | M19: 2981.768327 | N19: 1734.89193 | O19: 3174.613648 | P19: 391.3184087 | Q19: 744.7890543 | R19: -397.6352552 | S19: -496.5919464 | T19: 1548.681767 | U19: 109101.4073 | V19: 1548.681767 | W19: 146.9985261 | X19: 141.8255701 | Y19: 141.8255701 | Z19: 3546.52117 | AA19: 3463.551467
E20: Consumption | F20: 1043.300044 | G20: 183.5841177 | H20: 2740.315408 | I20: 68140.23229 | J20: 2547.035418 | K20: 383.1885441 | L20: 147.1277395 | M20: 704.3578728 | N20: 2418.491956 | O20: 4082.504723 | P20: 1010.442407 | Q20: 1593.819884 | R20: =R18+R19 -> 2873.30001 | S20: 3792.457684 | T20: 3126.804484 | U20: 2740.315408 | V20: 3126.804484 | W20: 69740.32867 | X20: 68143.13233 | Y20: 68140.71608 | Z20: 411.7768927 | AA20: 308.4852773
D21: Water Quality (kg/MWh) | E21: Aluminum | F21: 2.852424163e-05 | G21: 0 | H21: 6.245813382e-06 | I21: 6.52200558e-11 | J21: 0 | K21: 8.974398335e-07 | L21: 3.217467515e-09 | M21: 1.166615463e-08 | N21: 0.0001055553158 | O21: 0.0001339172175 | P21: 2.184580319e-07 | Q21: 8.598796306e-07 | R21: 1.474924826e-06 | S21: 1.746704219e-06 | T21: 4.963312718e-06 | U21: 6.245813382e-06 | V21: 4.963312718e-06 | W21: 4.840343339e-08 | X21: 6.52200558e-11 | Y21: 6.52200558e-11 | Z21: 7.272298009e-07 | AA21: 1.247049502e-06
E22: Arsenic (+V) | F22: 2.153594242e-05 | G22: 0 | H22: 0.005291241921 | I22: 3.173780671e-09 | J22: 0.0001210438825 | K22: 9.025848978e-06 | L22: 6.545137072e-08 | M22: 4.926803377e-06 | N22: 4.57285837e-05 | O22: 7.123296061e-05 | P22: 3.060924052e-06 | Q22: 9.022681598e-06 | R22: 3.033939012e-05 | S22: 3.621994755e-05 | T22: 2.956818901e-06 | U22: 0.005291241921 | V22: 2.956818901e-06 | W22: 2.566692759e-07 | X22: 3.173780671e-09 | Y22: 3.173780671e-09 | Z22: 7.62443089e-06 | AA22: 5.940706436e-06
E23: Copper (+II) | F23: 2.614022817e-05 | G23: 0 | H23: 0.006271608795 | I23: 1.773757537e-09 | J23: 0.0003706675798 | K23: 7.39678628e-06 | L23: 4.612562865e-08 | M23: 3.379482884e-06 | N23: 5.575490358e-05 | O23: 8.631788628e-05 | P23: 3.668830407e-06 | Q23: 1.080240175e-05 | R23: 4.092956628e-05 | S23: 4.886349188e-05 | T23: 4.41390079e-05 | U23: 0.006271608795 | V23: 4.41390079e-05 | W23: 3.020927088e-07 | X23: 1.773757537e-09 | Y23: 1.773757537e-09 | Z23: 7.261793734e-06 | AA23: 5.909042988e-06
E24: Iron | F24: 0.0005647986212 | G24: 0 | H24: 0.08670669376 | I24: 1.026078666e-06 | J24: 0.00281942696 | K24: 0.0002250397867 | L24: 2.218016105e-05 | M24: 0.001631723504 | N24: 0.001138690881 | O24: 0.002186110225 | P24: 0.0001136607862 | Q24: 0.0002593690961 | R24: 0.001673674748 | S24: 0.001998277952 | T24: 0.000713278336 | U24: 0.08670669376 | V24: 0.000713278336 | W24: 2.392882055e-05 | X24: 1.990579478e-06 | Y24: 1.186977826e-06 | Z24: 0.0005736234971 | AA24: 0.0004388420527
E25: Lead (+II) | F25: 1.225764575e-06 | G25: 0 | H25: 1.000122691e-06 | I25: 2.50489574e-09 | J25: 8.207188651e-05 | K25: -9.927088045e-05 | L25: 4.971414118e-08 | M25: 3.056986856e-06 | N25: 1.296981912e-06 | O25: 1.820358021e-06 | P25: 1.211728872e-07 | Q25: 1.23309647e-07 | R25: 5.937053544e-05 | S25: 7.089846275e-05 | T25: 6.019642076e-07 | U25: 1.000122691e-06 | V25: 6.019642076e-07 | W25: 6.656746032e-08 | X25: 4.461310604e-09 | Y25: 2.831267168e-09 | Z25: -0.0001620872034 | AA25: -0.0001165614092
E26: Manganese (+II) | F26: 0.0005110012315 | G26: 0 | H26: 0.0002487194302 | I26: 8.139309425e-09 | J26: 0.00370428284 | K26: 4.404257366e-05 | L26: 1.607312892e-07 | M26: 0.0001230940476 | N26: 0.0001790232398 | O26: 0.0002828386325 | P26: 1.019008233e-05 | Q26: 3.487801327e-05 | R26: 5.824552143e-05 | S26: 6.894725238e-05 | T26: 0.0001457758593 | U26: 0.0002487194302 | V26: 0.0001457758593 | W26: 9.676726591e-07 | X26: 8.139309425e-09 | Y26: 8.139309425e-09 | Z26: 3.635233157e-05 | AA26: 2.84430273e-05
E27: Nickel (+II) | F27: 0.001932415176 | G27: 0 | H27: 0.5030715675 | I27: 3.099854945e-08 | J27: 0.0001187584854 | K27: 0.0008577553748 | L27: 1.830804333e-06 | M27: 1.073568891e-05 | N27: 0.004062544788 | O27: 0.006340985536 | P27: 0.0002785451785 | Q27: 0.0008280276542 | R27: 0.001055603506 | S27: 0.001260055408 | T27: 0.2939597292 | U27: 0.5030715675 | V27: 0.2939597292 | W27: 2.10396655e-05 | X27: 3.892964444e-08 | Y27: 3.232162404e-08 | Z27: 0.0006944981243 | AA27: 0.0005404409481
E28: Strontium | F28: 0.001125941702 | G28: 0 | H28: 1.923630489e-06 | I28: 1.9086064e-08 | J28: 0.0003394113711 | K28: 1.289486767e-05 | L28: 4.924537443e-07 | M28: 4.805990844e-06 | N28: 0.0001163335019 | O28: 0.0001515836596 | P28: 1.34969229e-06 | Q28: 3.701985264e-06 | R28: 1.985128791e-06 | S28: 2.329034356e-06 | T28: 1.615319289e-06 | U28: 1.923630489e-06 | V28: 1.615319289e-06 | W28: 5.724992167e-06 | X28: 1.9086064e-08 | Y28: 1.9086064e-08 | Z28: 2.280399138e-05 | AA28: 1.497204658e-05
E29: Zinc (+II) | F29: 0.0003222454153 | G29: 0 | H29: 0.06534748748 | I29: 5.261129079e-09 | J29: 4.860591096e-05 | K29: 0.0001516093478 | L29: 2.867402228e-07 | M29: 1.812588668e-06 | N29: 0.0005936617583 | O29: 0.0009108288925 | P29: 3.738116663e-05 | Q29: 0.0001107005529 | R29: 0.0009657730721 | S29: 0.001153288328 | T29: 0.0002246129425 | U29: 0.06534748748 | V29: 0.0002246129425 | W29: 3.015990511e-06 | X29: 7.494019337e-09 | Y29: 5.633622458e-09 | Z29: 0.0001649905722 | AA29: 0.0001246444256
E30: Ammonium/ammonia | F30: 0.0007602621753 | G30: 0 | H30: 0.0110514378 | I30: 2.953443271e-08 | J30: 0.0004418743806 | K30: 0.008792471428 | L30: 5.365205144e-07 | M30: 1.516401494e-05 | N30: 0.0008281266776 | O30: 0.00121047089 | P30: 3.602359925e-05 | Q30: 0.0001074764699 | R30: 0.001370464423 | S30: 0.001636076082 | T30: 0.006457062228 | U30: 0.0110514378 | V30: 0.006457062228 | W30: 1.885606038e-06 | X30: 2.953443271e-08 | Y30: 2.953443271e-08 | Z30: 0.01462780809 | AA30: 0.01053778421
E31: Hydrogen chloride | F31: 2.246812488e-08 | G31: 0 | H31: 6.275373974e-09 | I31: 1.258909965e-11 | J31: 3.83460111e-08 | K31: 3.762582488e-09 | L31: 2.091530271e-10 | M31: 6.85098857e-08 | N31: 6.295413843e-05 | O31: 6.297384729e-05 | P31: 5.900097633e-09 | Q31: 7.268563968e-09 | R31: 2.721797598e-05 | S31: 3.116603956e-05 | T31: 3.701798041e-09 | U31: 6.275373974e-09 | V31: 3.701798041e-09 | W31: 4.799305917e-10 | X31: 1.258909965e-11 | Y31: 1.258909965e-11 | Z31: 4.696415698e-09 | AA31: 3.512388243e-09
E32: Nitrogen (as total N) | F32: 3.72715433e-05 | G32: 0 | H32: 1.302310707e-05 | I32: 1.214242011e-09 | J32: 3.742788499e-07 | K32: -0.0004876470029 | L32: 4.451691421e-08 | M32: 0.0001092183276 | N32: 0.0001074634259 | O32: 0.0001359342238 | P32: 0.001311375298 | Q32: 0.001479086926 | R32: 8.24959288e-06 | S32: 9.649016826e-06 | T32: 0.001824894984 | U32: 1.302310707e-05 | V32: 0.001824894984 | W32: 7.517403032e-07 | X32: 1.214242011e-09 | Y32: 1.214242011e-09 | Z32: -0.0008186441765 | AA32: -0.0005893806018
E33: Phosphate | F33: 5.788983959e-06 | G33: 0 | H33: 4.24532526e-06 | I33: 1.719433738e-08 | J33: 0.0008246176561 | K33: 1.450214161e-05 | L33: 2.842228815e-07 | M33: 9.066203098e-06 | N33: 2.247116731e-05 | O33: 3.187724391e-05 | P33: 5.723276816e-07 | Q33: 1.113070135e-06 | R33: 1.604292338e-07 | S33: 1.90935268e-07 | T33: 2.464699777e-06 | U33: 4.24532526e-06 | V33: 2.464699777e-06 | W33: 3.813656115e-08 | X33: 2.73524651e-08 | Y33: 1.88889282e-08 | Z33: 2.042047725e-05 | AA33: 1.188627769e-05
E34: Phosphorus | F34: 1.486329711e-05 | G34: 0 | H34: 0.00119357005 | I34: 4.26560074e-09 | J34: 3.150325993e-06 | K34: -6.158063265e-06 | L34: 7.123823095e-08 | M34: 6.997040065e-06 | N34: 4.901513363e-05 | O34: 8.712562548e-05 | P34: 3.231680749e-05 | Q34: 4.693868964e-05 | R34: 0.0005910880468 | S34: 0.0007059526657 | T34: 0.00080107133 | U34: 0.00119357005 | V34: 0.00080107133 | W34: 1.002704832e-07 | X34: 4.26560074e-09 | Y34: 4.26560074e-09 | Z34: -1.214552885e-05 | AA34: -8.420712575e-06
D35: Resource Energy (MJ/MWh) | E35: Crude oil | F35: 82.6149834 | G35: 4.160854481 | H35: 46.42913334 | I35: 0.07188866505 | J35: 12765.02598 | K35: 99.02362971 | L35: 6.391890508 | M35: 90.30482316 | N35: 59.71183283 | O35: 82.04231211 | P35: 4.706063569 | Q35: 5.516062602 | R35: 59.19015441 | S35: 70.68410271 | T35: 34.02038983 | U35: 42.55132187 | V35: 31.75448314 | W35: 1.203873993 | X35: 0.3608998015 | Y35: 0.1112338034 | Z35: 57.39256825 | AA35: 192.1177244
E36: Hard coal | F36: 10701.89575 | G36: 18.59418304 | H36: 282.7053623 | I36: 0.3116585248 | J36: 201.3222264 | K36: 47.39062832 | L36: 7.334219292 | M36: 104.8250336 | N36: 9654.870828 | O36: 13338.04165 | P36: 20.94040337 | Q36: 24.5446272 | R36: 10061.77061 | S36: 12017.21605 | T36: 167.6602583 | U36: 15.20059081 | V36: 11.35022189 | W36: 9.648675156 | X36: 2.182194053 | Y36: 0.7601189602 | Z36: 64.93434924 | AA36: 85.46307768
E37: Lignite | F37: 0.3291151495 | G37: 0.005621553507 | H37: 0.523405893 | I37: 0.02315617769 | J37: 16.22778318 | K37: 2.102352779 | L37: 0.3309745685 | M37: 1.592955792 | N37: 0.168871255 | O37: 0.2257806394 | P37: 0.01228380456 | Q37: 0.01439807048 | R37: 0.2071146286 | S37: 0.245461425 | T37: 0.3300606107 | U37: 0.4182845355 | V37: 0.2686354513 | W37: 0.04806721506 | X37: 0.03492814164 | Y37: 0.02849772995 | Z37: 2.740036279 | AA37: 2.247372686
E38: Natural gas | F38: 30.95354678 | G38: 7617.711168 | H38: 763.7668882 | I38: 0.07909032388 | J38: 1363.456762 | K38: 57.46143652 | L38: 2.875382675 | M38: 207.179905 | N38: 41.97832753 | O38: 53.83606703 | P38: 7761.574969 | Q38: 9097.483023 | R38: 84.97601512 | S38: 99.84865111 | T38: 464.0530361 | U38: 795.104489 | V38: 482.364416 | W38: 11.48857722 | X38: 0.2977012545 | Y38: 0.09844248425 | Z38: 52.72179426 | AA38: 62.77414778
E39: Uranium | F39: 1.45182687 | G39: 0.03286190303 | H39: 4.85143221 | I39: 0.04106102502 | J39: 77.67323662 | K39: 5.336792297 | L39: 0.6301533507 | M39: 7.946456374 | N39: 0.8692137688 | O39: 1.173535812 | P39: 0.05731040398 | Q39: 0.06717456564 | R39: 1.127650259 | S39: 1.339271329 | T39: 2.855593178 | U39: 4.574969812 | V39: 2.694048966 | W39: 0.07832078474 | X39: 0.05488769514 | Y39: 0.04733496491 | Z39: 7.791906615 | AA39: 6.785647122
E40: Total resource energy | F40: 10817.24522 | G40: 7640.504689 | H40: =SUM(H35:H39) -> 1098.276222 | I40: 0.5268547165 | J40: 14423.70598 | K40: 211.3148396 | L40: 17.56262039 | M40: 411.8491739 | N40: 9757.599073 | O40: 13475.31935 | P40: 7787.29103 | Q40: 9127.625285 | R40: 10207.27154 | S40: 12189.33354 | T40: 668.919338 | U40: 857.849656 | V40: 528.4318054 | W40: 22.46751436 | X40: 2.930610945 | Y40: 1.045627943 | Z40: 185.5806547 | AA40: 349.3879697

Sheet TechScenario
A1: Technology (Percentage) | B1: U.S. Consumption Mix 2014 | C1: U.S. Consumption Mix 2000 | D1: U.S. Consumption Mix 2001 | E1: U.S. Consumption Mix 2002 | F1: U.S. Consumption Mix 2003 | G1: U.S. Consumption Mix 2004 | H1: U.S. Consumption Mix 2005 | I1: U.S. Consumption Mix 2006 | J1: U.S. Consumption Mix 2007 | K1: U.S. Consumption Mix 2008 | L1: U.S. Consumption Mix 2009 | M1: U.S. Consumption Mix 2010 | N1: U.S. Consumption Mix 2011 | O1: U.S. Consumption Mix 2012 | P1: U.S. Consumption Mix 2013 | Q1: U.S. Gen. Mix 2000 | R1: U.S. Gen. Mix 2001 | S1: U.S. Gen. Mix 2002 | T1: U.S. Gen. Mix 2003 | U1: U.S. Gen. Mix 2004 | V1: U.S. Gen. Mix 2005 | W1: U.S. Gen. Mix 2006 | X1: U.S. Gen. Mix 2007 | Y1: U.S. Gen. Mix 2008 | Z1: U.S. Gen. Mix 2009 | AA1: U.S. Gen. Mix 2010 | AB1: U.S. Gen. Mix 2011 | AC1: U.S. Gen. Mix 2012 | AD1: U.S. Gen. Mix 2013 | AE1: U.S. Gen. Mix 2014 | AF1: U.S. Gen. Mix AEO2040 | AG1: North America Mix 2000 | AH1: North America Mix 2001 | AI1: North America Mix 2002 | AJ1: North America Mix 2003 | AK1: North America Mix 2004 | AL1: North America Mix 2005 | AM1: North America Mix 2006 | AN1: North America Mix 2007 | AO1: North America Mix 2008 | AP1: North America Mix 2009 | AQ1: North America Mix 2010 | AR1: North America Mix 2011 | AS1: North America Mix 2012 | AT1: North America Mix 2013 | AU1: North America Mix 2014
A2: Fleet Coal | B2: ='Default Mixes'!Q12*100 -> 38.86294353 | C2: ='Default Mixes'!C12*100 -> 53.2024024 | D2: ='Default Mixes'!D12*100 -> 51.33102208 | E2: ='Default Mixes'!E12*100 -> 50.56734039 | F2: ='Default Mixes'!F12*100 -> 51.37029654 | G2: ='Default Mixes'!G12*100 -> 50.3206078 | H2: ='Default Mixes'!H12*100 -> 49.99686201 | I2: ='Default Mixes'!I12*100 -> 49.35553575 | J2: ='Default Mixes'!J12*100 -> 48.79878853 | K2: ='Default Mixes'!K12*100 -> 48.414084 | L2: ='Default Mixes'!L12*100 -> 44.6626087 | M2: ='Default Mixes'!M12*100 -> 45.02750254 | N2: ='Default Mixes'!N12*100 -> 42.50202503 | O2: ='Default Mixes'!O12*100 -> 37.55355478 | P2: ='Default Mixes'!P12*100 -> 39.02600633 | Q2: ='Default Mixes'!C2*100 -> 53.85293379 | R2: ='Default Mixes'!D2*100 -> 51.8084816 | S2: ='Default Mixes'!E2*100 -> 50.98969539 | T2: ='Default Mixes'!F2*100 -> 51.72537869 | U2: ='Default Mixes'!G2*100 -> 50.68946919 | V2: ='Default Mixes'!H2*100 -> 50.46914443 | W2: ='Default Mixes'!I2*100 -> 49.80178225 | X2: ='Default Mixes'!J2*100 -> 49.31444939 | Y2: ='Default Mixes'!K2*100 -> 49.0012829 | Z2: ='Default Mixes'!L2*100 -> 45.20969847 | AA2: ='Default Mixes'!M2*100 -> 45.54334518 | AB2: ='Default Mixes'!N2*100 -> 43.0204531 | AC2: ='Default Mixes'!O2*100 -> 38.07613351 | AD2: ='Default Mixes'!P2*100 -> 39.64942587 | AE2: ='Default Mixes'!Q2*100 -> 39.38369893 | AF2: ='Default Mixes'!R2*100 -> 35.03137196 | AG2: ='Default Mixes'!C22*100 -> 49.98892308 | AH2: ='Default Mixes'!D22*100 -> 48.3297493 | AI2: ='Default Mixes'!E22*100 -> 47.62520041 | AJ2: ='Default Mixes'!F22*100 -> 48.4175564 | AK2: ='Default Mixes'!G22*100 -> 47.23309834 | AL2: ='Default Mixes'!H22*100 -> 46.84993572 | AM2: ='Default Mixes'!I22*100 -> 46.27233297 | AN2: ='Default Mixes'!J22*100 -> 45.79240635 | AO2: ='Default Mixes'!K22*100 -> 45.39460016 | AP2: ='Default Mixes'!L22*100 -> 41.75548209 | AQ2: ='Default Mixes'!M22*100 -> 42.26291207 | AR2: ='Default Mixes'!N22*100 -> 39.70887178 | AS2: ='Default Mixes'!O22*100 -> 35.13290029 | AT2: ='Default Mixes'!P22*100 -> 36.54187545 | AU2: ='Default Mixes'!Q22*100 -> 36.24632351
A3: Fleet Natural Gas | B3: ='Default Mixes'!Q13*100 -> 27.6820276 | C3: ='Default Mixes'!C13*100 -> 14.1901782 | D3: ='Default Mixes'!D13*100 -> 17.23774249 | E3: ='Default Mixes'!E13*100 -> 18.07422702 | F3: ='Default Mixes'!F13*100 -> 16.91593109 | G3: ='Default Mixes'!G13*100 -> 18.06857393 | H3: ='Default Mixes'!H13*100 -> 18.91192377 | I3: ='Default Mixes'!I13*100 -> 20.25459763 | J3: ='Default Mixes'!J13*100 -> 21.71556962 | K3: ='Default Mixes'!K13*100 -> 21.53651442 | L3: ='Default Mixes'!L13*100 -> 23.44619557 | M3: ='Default Mixes'!M13*100 -> 24.10131506 | N3: ='Default Mixes'!N13*100 -> 24.89321804 | O3: ='Default Mixes'!O13*100 -> 30.44755769 | P3: ='Default Mixes'!P13*100 -> 27.75561129 | Q3: ='Default Mixes'!C3*100 -> 14.35565478 | R3: ='Default Mixes'!D3*100 -> 17.39131736 | S3: ='Default Mixes'!E3*100 -> 18.22649561 | T3: ='Default Mixes'!F3*100 -> 17.03202474 | U3: ='Default Mixes'!G3*100 -> 18.19469943 | V3: ='Default Mixes'!H3*100 -> 19.07969363 | W3: ='Default Mixes'!I3*100 -> 20.42702447 | X3: ='Default Mixes'!J3*100 -> 21.92700569 | Y3: ='Default Mixes'!K3*100 -> 21.78828683 | Z3: ='Default Mixes'!L3*100 -> 23.71267614 | AA3: ='Default Mixes'!M3*100 -> 24.35081953 | AB3: ='Default Mixes'!N3*100 -> 25.15784317 | AC3: ='Default Mixes'!O3*100 -> 30.82957592 | AD3: ='Default Mixes'!P3*100 -> 28.17394956 | AE3: ='Default Mixes'!Q3*100 -> 28.05193725 | AF3: ='Default Mixes'!R3*100 -> 31.50727238 | AG3: ='Default Mixes'!C23*100 -> 13.28270674 | AH3: ='Default Mixes'!D23*100 -> 16.16302975 | AI3: ='Default Mixes'!E23*100 -> 16.82077491 | AJ3: ='Default Mixes'!F23*100 -> 15.71619323 | AK3: ='Default Mixes'!G23*100 -> 16.79942124 | AL3: ='Default Mixes'!H23*100 -> 17.6065425 | AM3: ='Default Mixes'!I23*100 -> 18.91037175 | AN3: ='Default Mixes'!J23*100 -> 20.26136778 | AO3: ='Default Mixes'!K23*100 -> 19.96898278 | AP3: ='Default Mixes'!L23*100 -> 21.68233838 | AQ3: ='Default Mixes'!M23*100 -> 22.49598004 | AR3: ='Default Mixes'!N23*100 -> 23.23050962 | AS3: ='Default Mixes'!O23*100 -> 28.23815571 | AT3: ='Default Mixes'!P23*100 -> 25.79563631 | AU3: ='Default Mixes'!Q23*100 -> 25.23157229
A4: Existing Nuclear | B4: ='Default Mixes'!Q14*100 -> 19.72710038 | C4: ='Default Mixes'!C14*100 -> 20.71791005 | D4: ='Default Mixes'!D14*100 -> 20.79184413 | E4: ='Default Mixes'!E14*100 -> 20.45449298 | F4: ='Default Mixes'!F14*100 -> 19.92904989 | G4: ='Default Mixes'!G14*100 -> 20.16114281 | H4: ='Default Mixes'!H14*100 -> 19.52946444 | I4: ='Default Mixes'!I14*100 -> 19.64029604 | J4: ='Default Mixes'!J14*100 -> 19.62991438 | K4: ='Default Mixes'!K14*100 -> 19.88018873 | L4: ='Default Mixes'!L14*100 -> 20.54128687 | M4: ='Default Mixes'!M14*100 -> 19.83716555 | N4: ='Default Mixes'!N14*100 -> 19.5291123 | O4: ='Default Mixes'!O14*100 -> 19.28402889 | P4: ='Default Mixes'!P14*100 -> 19.57806822 | Q4: ='Default Mixes'!C4*100 -> 20.89398934 | R4: ='Default Mixes'!D4*100 -> 20.92049799 | S4: ='Default Mixes'!E4*100 -> 20.57555661 | T4: ='Default Mixes'!F4*100 -> 20.01501651 | U4: ='Default Mixes'!G4*100 -> 20.20423877 | V4: ='Default Mixes'!H4*100 -> 19.60688249 | W4: ='Default Mixes'!I4*100 -> 19.69590182 | X4: ='Default Mixes'!J4*100 -> 19.72193038 | Y4: ='Default Mixes'!K4*100 -> 19.89384953 | Z4: ='Default Mixes'!L4*100 -> 20.56831904 | AA4: ='Default Mixes'!M4*100 -> 19.89510157 | AB4: ='Default Mixes'!N4*100 -> 19.61136828 | AC4: ='Default Mixes'!O4*100 -> 19.34763403 | AD4: ='Default Mixes'!P4*100 -> 19.74760124 | AE4: ='Default Mixes'!Q4*100 -> 19.84898985 | AF4: ='Default Mixes'!R4*100 -> 17.38435883 | AG4: ='Default Mixes'!C24*100 -> 20.06114 | AH4: ='Default Mixes'!D24*100 -> 20.25661142 | AI4: ='Default Mixes'!E24*100 -> 19.9166465 | AJ4: ='Default Mixes'!F24*100 -> 19.46320496 | AK4: ='Default Mixes'!G24*100 -> 19.9352216 | AL4: ='Default Mixes'!H24*100 -> 19.31486895 | AM4: ='Default Mixes'!I24*100 -> 19.58604157 | AN4: ='Default Mixes'!J24*100 -> 19.3990004 | AO4: ='Default Mixes'!K24*100 -> 19.63363319 | AP4: ='Default Mixes'!L24*100 -> 20.18139411 | AQ4: ='Default Mixes'!M24*100 -> 19.64215928 | AR4: ='Default Mixes'!N24*100 -> 19.34082696 | AS4: ='Default Mixes'!O24*100 -> 19.17023731 | AT4: ='Default Mixes'!P24*100 -> 19.35600302 | AU4: ='Default Mixes'!Q24*100 -> 19.61219951
A5: Existing Hydro | B5: ='Default Mixes'!Q15*100 -> 7.383071357 | C5: ='Default Mixes'!C15*100 -> 8.356615283 | D5: ='Default Mixes'!D15*100 -> 6.424719046 | E5: ='Default Mixes'!E15*100 -> 7.439925988 | F5: ='Default Mixes'!F15*100 -> 7.56615606 | G5: ='Default Mixes'!G15*100 -> 7.209375937 | H5: ='Default Mixes'!H15*100 -> 7.349220914 | I5: ='Default Mixes'!I15*100 -> 7.759921189 | J5: ='Default Mixes'!J15*100 -> 6.722672076 | K5: ='Default Mixes'!K15*100 -> 7.011606396 | L5: ='Default Mixes'!L15*100 -> 7.782324692 | M5: ='Default Mixes'!M15*100 -> 7.128944502 | N5: ='Default Mixes'!N15*100 -> 8.667501713 | O5: ='Default Mixes'!O15*100 -> 7.836346377 | P5: ='Default Mixes'!P15*100 -> 7.882365377 | Q5: ='Default Mixes'!C5*100 -> 7.366560541 | R5: ='Default Mixes'!D5*100 -> 5.663636 | S5: ='Default Mixes'!E5*100 -> 6.741529171 | T5: ='Default Mixes'!F5*100 -> 7.004324126 | U5: ='Default Mixes'!G5*100 -> 6.660090166 | V5: ='Default Mixes'!H5*100 -> 6.613379455 | W5: ='Default Mixes'!I5*100 -> 7.072739723 | X5: ='Default Mixes'!J5*100 -> 5.884456157 | Y5: ='Default Mixes'!K5*100 -> 6.133004191 | Z5: ='Default Mixes'!L5*100 -> 6.92132413 | AA5: ='Default Mixes'!M5*100 -> 6.279458615 | AB5: ='Default Mixes'!N5*100 -> 7.766429836 | AC5: ='Default Mixes'!O5*100 -> 6.822576544 | AD5: ='Default Mixes'!P5*100 -> 6.604099659 | AE5: ='Default Mixes'!Q5*100 -> 6.304364823 | AF5: ='Default Mixes'!R5*100 -> 6.535962341 | AG5: ='Default Mixes'!C25*100 -> 13.32632743 | AH5: ='Default Mixes'!D25*100 -> 11.27137772 | AI5: ='Default Mixes'!E25*100 -> 12.35771727 | AJ5: ='Default Mixes'!F25*100 -> 12.36654659 | AK5: ='Default Mixes'!G25*100 -> 11.97571498 | AL5: ='Default Mixes'!H25*100 -> 12.23071331 | AM5: ='Default Mixes'!I25*100 -> 12.40454327 | AN5: ='Default Mixes'!J25*100 -> 11.57137413 | AO5: ='Default Mixes'!K25*100 -> 12.00137739 | AP5: ='Default Mixes'!L25*100 -> 12.96560942 | AQ5: ='Default Mixes'!M25*100 -> 11.85113922 | AR5: ='Default Mixes'!N25*100 -> 13.5400354 | AS5: ='Default Mixes'!O25*100 -> 12.82046288 | AT5: ='Default Mixes'!P25*100 -> 12.86994845 | AU5: ='Default Mixes'!Q25*100 -> 13.00403397
A6: Petroleum | B6: ='Default Mixes'!Q16*100 -> 1.039696583 | C6: ='Default Mixes'!C16*100 -> 2.980571963 | D6: ='Default Mixes'!D16*100 -> 3.648238722 | E6: ='Default Mixes'!E16*100 -> 2.799736583 | F6: ='Default Mixes'!F16*100 -> 3.538327078 | G6: ='Default Mixes'!G16*100 -> 3.489142303 | H6: ='Default Mixes'!H16*100 -> 3.390650407 | I6: ='Default Mixes'!I16*100 -> 1.952299904 | J6: ='Default Mixes'!J16*100 -> 1.926641153 | K6: ='Default Mixes'!K16*100 -> 1.42062293 | L6: ='Default Mixes'!L16*100 -> 1.272864026 | M6: ='Default Mixes'!M16*100 -> 1.183144355 | N6: ='Default Mixes'!N16*100 -> 1.026138066 | O6: ='Default Mixes'!O16*100 -> 0.8729255915 | P6: ='Default Mixes'!P16*100 -> 0.9874982663 | Q6: ='Default Mixes'!C6*100 -> 2.97158266 | R6: ='Default Mixes'!D6*100 -> 3.644065329 | S6: ='Default Mixes'!E6*100 -> 2.796753655 | T6: ='Default Mixes'!F6*100 -> 3.538078516 | U6: ='Default Mixes'!G6*100 -> 3.494863284 | V6: ='Default Mixes'!H6*100 -> 3.402155893 | W6: ='Default Mixes'!I6*100 -> 1.960110256 | X6: ='Default Mixes'!J6*100 -> 1.936719609 | Y6: ='Default Mixes'!K6*100 -> 1.429939527 | Z6: ='Default Mixes'!L6*100 -> 1.276239666 | AA6: ='Default Mixes'!M6*100 -> 1.19261934 | AB6: ='Default Mixes'!N6*100 -> 1.036106376 | AC6: ='Default Mixes'!O6*100 -> 0.8824157388 | AD6: ='Default Mixes'!P6*100 -> 0.9997739959 | AE6: ='Default Mixes'!Q6*100 -> 1.05207619 | AF6: ='Default Mixes'!R6*100 -> 0.33762505 | AG6: ='Default Mixes'!C26*100 -> 2.842238672 | AH6: ='Default Mixes'!D26*100 -> 3.464079133 | AI6: ='Default Mixes'!E26*100 -> 2.675497189 | AJ6: ='Default Mixes'!F26*100 -> 3.410560058 | AK6: ='Default Mixes'!G26*100 -> 3.361483288 | AL6: ='Default Mixes'!H26*100 -> 3.225849989 | AM6: ='Default Mixes'!I26*100 -> 1.844669608 | AN6: ='Default Mixes'!J26*100 -> 1.834712061 | AO6: ='Default Mixes'!K26*100 -> 1.366442988 | AP6: ='Default Mixes'!L26*100 -> 1.224970497 | AQ6: ='Default Mixes'!M26*100 -> 1.105592099 | AR6: ='Default Mixes'!N26*100 -> 0.9435598135 | AS6: ='Default Mixes'!O26*100 -> 0.8085710618 | AT6: ='Default Mixes'!P26*100 -> 0.9066006997 | AU6: ='Default Mixes'!Q26*100 -> 0.9517346443
A7: Onshore Wind | B7: ='Default Mixes'!Q17*100 -> 4.480758118 | C7: ='Default Mixes'!C17*100 -> 0.1535366774 | D7: ='Default Mixes'!D17*100 -> 0.1819053089 | E7: ='Default Mixes'!E17*100 -> 0.2711172502 | F7: ='Default Mixes'!F17*100 -> 0.2914009203 | G7: ='Default Mixes'!G17*100 -> 0.360287675 | H7: ='Default Mixes'!H17*100 -> 0.4437995116 | I7: ='Default Mixes'!I17*100 -> 0.6639704774 | J7: ='Default Mixes'!J17*100 -> 0.8379066976 | K7: ='Default Mixes'!K17*100 -> 1.354763794 | L7: ='Default Mixes'!L17*100 -> 1.890687209 | M7: ='Default Mixes'!M17*100 -> 2.321443442 | N7: ='Default Mixes'!N17*100 -> 2.96160592 | O7: ='Default Mixes'!O17*100 -> 3.511749155 | P7: ='Default Mixes'!P17*100 -> 4.159384928 | Q7: ='Default Mixes'!C7*100 -> 0.1550160898 | R7: ='Default Mixes'!D7*100 -> 0.1833202766 | S7: ='Default Mixes'!E7*100 -> 0.2731049159 | T7: ='Default Mixes'!F7*100 -> 0.293175743 | U7: ='Default Mixes'!G7*100 -> 0.3624078703 | V7: ='Default Mixes'!H7*100 -> 0.4465785628 | W7: ='Default Mixes'!I7*100 -> 0.665246054 | X7: ='Default Mixes'!J7*100 -> 0.8425092248 | Y7: ='Default Mixes'!K7*100 -> 1.366127837 | Z7: ='Default Mixes'!L7*100 -> 1.90236128 | AA7: ='Default Mixes'!M7*100 -> 2.333563603 | AB7: ='Default Mixes'!N7*100 -> 2.982565775 | AC7: ='Default Mixes'!O7*100 -> 3.54148282 | AD7: ='Default Mixes'!P7*100 -> 4.204526939 | AE7: ='Default Mixes'!Q7*100 -> 4.523108427 | AF7: ='Default Mixes'!R7*100 -> 5.451910322 | AG7: ='Default Mixes'!C27*100 -> 0.1428489459 | AH7: ='Default Mixes'!D27*100 -> 0.1709433254 | AI7: ='Default Mixes'!E27*100 -> 0.2519928276 | AJ7: ='Default Mixes'!F27*100 -> 0.2769175875 | AK7: ='Default Mixes'!G27*100 -> 0.344032643 | AL7: ='Default Mixes'!H27*100 -> 0.4330591989 | AM7: ='Default Mixes'!I27*100 -> 0.6461813652 | AN7: ='Default Mixes'!J27*100 -> 0.8101911256 | AO7: ='Default Mixes'!K27*100 -> 1.291174817 | AP7: ='Default Mixes'!L27*100 -> 1.827315768 | AQ7: ='Default Mixes'!M27*100 -> 2.277535944 | AR7: ='Default Mixes'!N27*100 -> 2.85331607 | AS7: ='Default Mixes'!O27*100 -> 3.378766114 | AT7: ='Default Mixes'!P27*100 -> 3.97112117 | AU7: ='Default Mixes'!Q27*100 -> 4.21308071
A8: Geothermal | B8: ='Default Mixes'!Q18*100 -> 0.3896689052 | C8: ='Default Mixes'!C18*100 -> 0.3852969002 | D8: ='Default Mixes'!D18*100 -> 0.369910549 | E8: ='Default Mixes'!E18*100 -> 0.3786573513 | F8: ='Default Mixes'!F18*100 -> 0.3749569026 | G8: ='Default Mixes'!G18*100 -> 0.3762621197 | H8: ='Default Mixes'!H18*100 -> 0.3644361581 | I8: ='Default Mixes'!I18*100 -> 0.3607976438 | J8: ='Default Mixes'!J18*100 -> 0.3537179349 | K8: ='Default Mixes'!K18*100 -> 0.3611908311 | L8: ='Default Mixes'!L18*100 -> 0.3813796028 | M8: ='Default Mixes'!M18*100 -> 0.370636441 | N8: ='Default Mixes'!N18*100 -> 0.3753803513 | O8: ='Default Mixes'!O18*100 -> 0.3858327221 | P8: ='Default Mixes'!P18*100 -> 0.3883889548 | Q8: ='Default Mixes'!C8*100 -> 0.3905890047 | R8: ='Default Mixes'!D8*100 -> 0.3739058811 | S8: ='Default Mixes'!E8*100 -> 0.3822255492 | T8: ='Default Mixes'!F8*100 -> 0.3780072331 | U8: ='Default Mixes'!G8*100 -> 0.3794982301 | V8: ='Default Mixes'!H8*100 -> 0.3683752875 | W8: ='Default Mixes'!I8*100 -> 0.3644854833 | X8: ='Default Mixes'!J8*100 -> 0.3579624825 | Y8: ='Default Mixes'!K8*100 -> 0.3661892799 | Z8: ='Default Mixes'!L8*100 -> 0.3864404685 | AA8: ='Default Mixes'!M8*100 -> 0.3752113476 | AB8: ='Default Mixes'!N8*100 -> 0.3801141434 | AC8: ='Default Mixes'!O8*100 -> 0.3913632503 | AD8: ='Default Mixes'!P8*100 -> 0.3948188751 | AE8: ='Default Mixes'!Q8*100 -> 0.395328466 | AF8: ='Default Mixes'!R8*100 -> 1.478503833 | AG8: ='Default Mixes'!C28*100 -> 0.3437800339 | AH8: ='Default Mixes'!D28*100 -> 0.3311243854 | AI8: ='Default Mixes'!E28*100 -> 0.3391804037 | AJ8: ='Default Mixes'!F28*100 -> 0.3365611277 | AK8: ='Default Mixes'!G28*100 -> 0.3379094176 | AL8: ='Default Mixes'!H28*100 -> 0.3267965846 | AM8: ='Default Mixes'!I28*100 -> 0.3245423662 | AN8: ='Default Mixes'!J28*100 -> 0.3176659545 | AO8: ='Default Mixes'!K28*100 -> 0.3248741645 | AP8: ='Default Mixes'!L28*100 -> 0.3424557284 | AQ8: ='Default Mixes'!M28*100 -> 0.3345738111 | AR8: ='Default Mixes'!N28*100 -> 0.3371990133 | AS8: ='Default Mixes'!O28*100 -> 0.3472816035 | AT8: ='Default Mixes'!P28*100 -> 0.3504067616 | AU8: ='Default Mixes'!Q28*100 -> 0.3472048966
A9: Solar Thermal | B9: ='Default Mixes'!Q19*100*'Default Mixes'!$V$34 -> 0.05998442976 | C9: ='Default Mixes'!C19*100*'Default Mixes'!$V$34 -> 0.001861142945 | D9: ='Default Mixes'!D19*100*'Default Mixes'!$V$34 -> 0.0020169429 | E9: ='Default Mixes'!E19*100*'Default Mixes'!$V$34 -> 0.002001042977 | F9: ='Default Mixes'!F19*100*'Default Mixes'!$V$34 -> 0.00191536829 | G9: ='Default Mixes'!G19*100*'Default Mixes'!$V$34 -> 0.002015530421 | H9: ='Default Mixes'!H19*100*'Default Mixes'!$V$34 -> 0.001882429094 | I9: ='Default Mixes'!I19*100*'Default Mixes'!$V$34 -> 0.001735972612 | J9: ='Default Mixes'!J19*100*'Default Mixes'!$V$34 -> 0.002040665523 | K9: ='Default Mixes'!K19*100*'Default Mixes'!$V$34 -> 0.002901562673 | L9: ='Default Mixes'!L19*100*'Default Mixes'!$V$34 -> 0.003125701273 | M9: ='Default Mixes'!M19*100*'Default Mixes'!$V$34 -> 0.004118436127 | N9: ='Default Mixes'!N19*100*'Default Mixes'!$V$34 -> 0.006211653975 | O9: ='Default Mixes'!O19*100*'Default Mixes'!$V$34 -> 0.01490247671 | P9: ='Default Mixes'!P19*100*'Default Mixes'!$V$34 -> 0.03072486997 | Q9: ='Default Mixes'!C9*100*'Default Mixes'!$V$34 -> 0.001886705993 | R9: ='Default Mixes'!D9*100*'Default Mixes'!$V$34 -> 0.002038727509 | S9: ='Default Mixes'!E9*100*'Default Mixes'!$V$34 -> 0.002019899385 | T9: ='Default Mixes'!F9*100*'Default Mixes'!$V$34 -> 0.001930950098 | U9: ='Default Mixes'!G9*100*'Default Mixes'!$V$34 -> 0.002032865355 | V9: ='Default Mixes'!H9*100*'Default Mixes'!$V$34 -> 0.001902775954 | W9: ='Default Mixes'!I9*100*'Default Mixes'!$V$34 -> 0.001753716598 | X9: ='Default Mixes'!J9*100*'Default Mixes'!$V$34 -> 0.002065153119 | Y9: ='Default Mixes'!K9*100*'Default Mixes'!$V$34 -> 0.002941716827 | Z9: ='Default Mixes'!L9*100*'Default Mixes'!$V$34 -> 0.003165366074 | AA9: ='Default Mixes'!M9*100*'Default Mixes'!$V$34 -> 0.004122948064 | AB9: ='Default Mixes'!N9*100*'Default Mixes'!$V$34 -> 0.006225553182 | AC9: ='Default Mixes'!O9*100*'Default Mixes'!$V$34 -> 0.01501470913 | AD9: ='Default Mixes'!P9*100*'Default Mixes'!$V$34 -> 0.03115636325 | AE9: ='Default Mixes'!Q9*100*'Default Mixes'!$V$34 -> 0.06077954182 | AF9: ='Default Mixes'!R9*100*'Default Mixes'!$V$34 -> 0.01070764116 | AG9: ='Default Mixes'!C29*100*'Default Mixes'!$V$34 -> 0.001660599357 | AH9: ='Default Mixes'!D29*100*'Default Mixes'!$V$34 -> 0.001805460752 | AI9: ='Default Mixes'!E29*100*'Default Mixes'!$V$34 -> 0.001792424107 | AJ9: ='Default Mixes'!F29*100*'Default Mixes'!$V$34 -> 0.001719233616 | AK9: ='Default Mixes'!G29*100*'Default Mixes'!$V$34 -> 0.001810085776 | AL9: ='Default Mixes'!H29*100*'Default Mixes'!$V$34 -> 0.001688008681 | AM9: ='Default Mixes'!I29*100*'Default Mixes'!$V$34 -> 0.001561530871 | AN9: ='Default Mixes'!J29*100*'Default Mixes'!$V$34 -> 0.001832674844 | AO9: ='Default Mixes'!K29*100*'Default Mixes'!$V$34 -> 0.002609819154 | AP9: ='Default Mixes'!L29*100*'Default Mixes'!$V$34 -> 0.00281948015 | AQ9: ='Default Mixes'!M29*100*'Default Mixes'!$V$34 -> 0.004154230004 | AR9: ='Default Mixes'!N29*100*'Default Mixes'!$V$34 -> 0.006303101519 | AS9: ='Default Mixes'!O29*100*'Default Mixes'!$V$34 -> 0.01429815724 | AT9: ='Default Mixes'!P29*100*'Default Mixes'!$V$34 -> 0.02875610465 | AU9: ='Default Mixes'!Q29*100*'Default Mixes'!$V$34 -> 0.05434339536
A10: SCPC | B10: 0 | C10: 0 | D10: 0 | E10: 0 | F10: 0 | G10: 0 | H10: 0 | I10: 0 | J10: 0 | K10: 0 | L10: 0 | M10: 0 | N10: 0 | O10: 0 | P10: 0 | Q10: 0 | R10: 0 | S10: 0 | T10: 0 | U10: 0 | V10: 0 | W10: 0 | X10: 0 | Y10: 0 | Z10: 0 | AA10: 0 | AB10: 0 | AC10: 0 | AD10: 0 | AE10: 0 | AF10: 0 | AG10: 0 | AH10: 0 | AI10: 0 | AJ10: 0 | AK10: 0 | AL10: 0 | AM10: 0 | AN10: 0 | AO10: 0 | AP10: 0 | AQ10: 0 | AR10: 0 | AS10: 0 | AT10: 0 | AU10: 0
A11: SCPC/CCS | B11: 0 | C11: 0 | D11: 0 | E11: 0 | F11: 0 | G11: 0 | H11: 0 | I11: 0 | J11: 0 | K11: 0 | L11: 0 | M11: 0 | N11: 0 | O11: 0 | P11: 0 | Q11: 0 | R11: 0 | S11: 0 | T11: 0 | U11: 0 | V11: 0 | W11: 0 | X11: 0 | Y11: 0 | Z11: 0 | AA11: 0 | AB11: 0 | AC11: 0 | AD11: 0 | AE11: 0 | AF11: 0 | AG11: 0 | AH11: 0 | AI11: 0 | AJ11: 0 | AK11: 0 | AL11: 0 | AM11: 0 | AN11: 0 | AO11: 0 | AP11: 0 | AQ11: 0 | AR11: 0 | AS11: 0 | AT11: 0 | AU11: 0
A12: NGCC | B12: 0 | C12: 0 | D12: 0 | E12: 0 | F12: 0 | G12: 0 | H12: 0 | I12: 0 | J12: 0 | K12: 0 | L12: 0 | M12: 0 | N12: 0 | O12: 0 | P12: 0 | Q12: 0 | R12: 0 | S12: 0 | T12: 0 | U12: 0 | V12: 0 | W12: 0 | X12: 0 | Y12: 0 | Z12: 0 | AA12: 0 | AB12: 0 | AC12: 0 | AD12: 0 | AE12: 0 | AF12: 0 | AG12: 0 | AH12: 0 | AI12: 0 | AJ12: 0 | AK12: 0 | AL12: 0 | AM12: 0 | AN12: 0 | AO12: 0 | AP12: 0 | AQ12: 0 | AR12: 0 | AS12: 0 | AT12: 0 | AU12: 0
A13: NGCC/CCS | B13: 0 | C13: 0 | D13: 0 | E13: 0 | F13: 0 | G13: 0 | H13: 0 | I13: 0 | J13: 0 | K13: 0 | L13: 0 | M13: 0 | N13: 0 | O13: 0 | P13: 0 | Q13: 0 | R13: 0 | S13: 0 | T13: 0 | U13: 0 | V13: 0 | W13: 0 | X13: 0 | Y13: 0 | Z13: 0 | AA13: 0 | AB13: 0 | AC13: 0 | AD13: 0 | AE13: 0 | AF13: 0 | AG13: 0 | AH13: 0 | AI13: 0 | AJ13: 0 | AK13: 0 | AL13: 0 | AM13: 0 | AN13: 0 | AO13: 0 | AP13: 0 | AQ13: 0 | AR13: 0 | AS13: 0 | AT13: 0 | AU13: 0
A14: IGCC | B14: 0 | C14: 0 | D14: 0 | E14: 0 | F14: 0 | G14: 0 | H14: 0 | I14: 0 | J14: 0 | K14: 0 | L14: 0 | M14: 0 | N14: 0 | O14: 0 | P14: 0 | Q14: 0 | R14: 0 | S14: 0 | T14: 0 | U14: 0 | V14: 0 | W14: 0 | X14: 0 | Y14: 0 | Z14: 0 | AA14: 0 | AB14: 0 | AC14: 0 | AD14: 0 | AE14: 0 | AF14: 0 | AG14: 0 | AH14: 0 | AI14: 0 | AJ14: 0 | AK14: 0 | AL14: 0 | AM14: 0 | AN14: 0 | AO14: 0 | AP14: 0 | AQ14: 0 | AR14: 0 | AS14: 0 | AT14: 0 | AU14: 0
A15: IGCC/CCS | B15: 0 | C15: 0 | D15: 0 | E15: 0 | F15: 0 | G15: 0 | H15: 0 | I15: 0 | J15: 0 | K15: 0 | L15: 0 | M15: 0 | N15: 0 | O15: 0 | P15: 0 | Q15: 0 | R15: 0 | S15: 0 | T15: 0 | U15: 0 | V15: 0 | W15: 0 | X15: 0 | Y15: 0 | Z15: 0 | AA15: 0 | AB15: 0 | AC15: 0 | AD15: 0 | AE15: 0 | AF15: 0 | AG15: 0 | AH15: 0 | AI15: 0 | AJ15: 0 | AK15: 0 | AL15: 0 | AM15: 0 | AN15: 0 | AO15: 0 | AP15: 0 | AQ15: 0 | AR15: 0 | AS15: 0 | AT15: 0 | AU15: 0
A16: Gen III+ Nuclear | B16: 0 | C16: 0 | D16: 0 | E16: 0 | F16: 0 | G16: 0 | H16: 0 | I16: 0 | J16: 0 | K16: 0 | L16: 0 | M16: 0 | N16: 0 | O16: 0 | P16: 0 | Q16: 0 | R16: 0 | S16: 0 | T16: 0 | U16: 0 | V16: 0 | W16: 0 | X16: 0 | Y16: 0 | Z16: 0 | AA16: 0 | AB16: 0 | AC16: 0 | AD16: 0 | AE16: 0 | AF16: 0 | AG16: 0 | AH16: 0 | AI16: 0 | AJ16: 0 | AK16: 0 | AL16: 0 | AM16: 0 | AN16: 0 | AO16: 0 | AP16: 0 | AQ16: 0 | AR16: 0 | AS16: 0 | AT16: 0 | AU16: 0
A17: Existing Nuclear w/ Centrifuge Enrich | B17: 0 | C17: 0 | D17: 0 | E17: 0 | F17: 0 | G17: 0 | H17: 0 | I17: 0 | J17: 0 | K17: 0 | L17: 0 | M17: 0 | N17: 0 | O17: 0 | P17: 0 | Q17: 0 | R17: 0 | S17: 0 | T17: 0 | U17: 0 | V17: 0 | W17: 0 | X17: 0 | Y17: 0 | Z17: 0 | AA17: 0 | AB17: 0 | AC17: 0 | AD17: 0 | AE17: 0 | AF17: 0 | AG17: 0 | AH17: 0 | AI17: 0 | AJ17: 0 | AK17: 0 | AL17: 0 | AM17: 0 | AN17: 0 | AO17: 0 | AP17: 0 | AQ17: 0 | AR17: 0 | AS17: 0 | AT17: 0 | AU17: 0
A18: Gen III+ Nuclear w/ Centrifuge Enrich | B18: 0 | C18: 0 | D18: 0 | E18: 0 | F18: 0 | G18: 0 | H18: 0 | I18: 0 | J18: 0 | K18: 0 | L18: 0 | M18: 0 | N18: 0 | O18: 0 | P18: 0 | Q18: 0 | R18: 0 | S18: 0 | T18: 0 | U18: 0 | V18: 0 | W18: 0 | X18: 0 | Y18: 0 | Z18: 0 | AA18: 0 | AB18: 0 | AC18: 0 | AD18: 0 | AE18: 0 | AF18: 0 | AG18: 0 | AH18: 0 | AI18: 0 | AJ18: 0 | AK18: 0 | AL18: 0 | AM18: 0 | AN18: 0 | AO18: 0 | AP18: 0 | AQ18: 0 | AR18: 0 | AS18: 0 | AT18: 0 | AU18: 0
A19: Greenfield Hydro | B19: 0 | C19: 0 | D19: 0 | E19: 0 | F19: 0 | G19: 0 | H19: 0 | I19: 0 | J19: 0 | K19: 0 | L19: 0 | M19: 0 | N19: 0 | O19: 0 | P19: 0 | Q19: 0 | R19: 0 | S19: 0 | T19: 0 | U19: 0 | V19: 0 | W19: 0 | X19: 0 | Y19: 0 | Z19: 0 | AA19: 0 | AB19: 0 | AC19: 0 | AD19: 0 | AE19: 0 | AF19: 0 | AG19: 0 | AH19: 0 | AI19: 0 | AJ19: 0 | AK19: 0 | AL19: 0 | AM19: 0 | AN19: 0 | AO19: 0 | AP19: 0 | AQ19: 0 | AR19: 0 | AS19: 0 | AT19: 0 | AU19: 0
A20: Power Addition Hydro | B20: 0 | C20: 0 | D20: 0 | E20: 0 | F20: 0 | G20: 0 | H20: 0 | I20: 0 | J20: 0 | K20: 0 | L20: 0 | M20: 0 | N20: 0 | O20: 0 | P20: 0 | Q20: 0 | R20: 0 | S20: 0 | T20: 0 | U20: 0 | V20: 0 | W20: 0 | X20: 0 | Y20: 0 | Z20: 0 | AA20: 0 | AB20: 0 | AC20: 0 | AD20: 0 | AE20: 0 | AF20: 0 | AG20: 0 | AH20: 0 | AI20: 0 | AJ20: 0 | AK20: 0 | AL20: 0 | AM20: 0 | AN20: 0 | AO20: 0 | AP20: 0 | AQ20: 0 | AR20: 0 | AS20: 0 | AT20: 0 | AU20: 0
A21: Power Upgrade Hydro | B21: 0 | C21: 0 | D21: 0 | E21: 0 | F21: 0 | G21: 0 | H21: 0 | I21: 0 | J21: 0 | K21: 0 | L21: 0 | M21: 0 | N21: 0 | O21: 0 | P21: 0 | Q21: 0 | R21: 0 | S21: 0 | T21: 0 | U21: 0 | V21: 0 | W21: 0 | X21: 0 | Y21: 0 | Z21: 0 | AA21: 0 | AB21: 0 | AC21: 0 | AD21: 0 | AE21: 0 | AF21: 0 | AG21: 0 | AH21: 0 | AI21: 0 | AJ21: 0 | AK21: 0 | AL21: 0 | AM21: 0 | AN21: 0 | AO21: 0 | AP21: 0 | AQ21: 0 | AR21: 0 | AS21: 0 | AT21: 0 | AU21: 0
A22: Advanced Onshore Wind | B22: 0 | C22: 0 | D22: 0 | E22: 0 | F22: 0 | G22: 0 | H22: 0 | I22: 0 | J22: 0 | K22: 0 | L22: 0 | M22: 0 | N22: 0 | O22: 0 | P22: 0 | Q22: 0 | R22: 0 | S22: 0 | T22: 0 | U22: 0 | V22: 0 | W22: 0 | X22: 0 | Y22: 0 | Z22: 0 | AA22: 0 | AB22: 0 | AC22: 0 | AD22: 0 | AE22: 0 | AF22: 0 | AG22: 0 | AH22: 0 | AI22: 0 | AJ22: 0 | AK22: 0 | AL22: 0 | AM22: 0 | AN22: 0 | AO22: 0 | AP22: 0 | AQ22: 0 | AR22: 0 | AS22: 0 | AT22: 0 | AU22: 0
A23: Offshore Wind | B23: 0 | C23: 0 | D23: 0 | E23: 0 | F23: 0 | G23: 0 | H23: 0 | I23: 0 | J23: 0 | K23: 0 | L23: 0 | M23: 0 | N23: 0 | O23: 0 | P23: 0 | Q23: 0 | R23: 0 | S23: 0 | T23: 0 | U23: 0 | V23: 0 | W23: 0 | X23: 0 | Y23: 0 | Z23: 0 | AA23: 0 | AB23: 0 | AC23: 0 | AD23: 0 | AE23: 0 | AF23: 0 | AG23: 0 | AH23: 0 | AI23: 0 | AJ23: 0 | AK23: 0 | AL23: 0 | AM23: 0 | AN23: 0 | AO23: 0 | AP23: 0 | AQ23: 0 | AR23: 0 | AS23: 0 | AT23: 0 | AU23: 0
A24: Solar PV | B24: ='Default Mixes'!Q19*100*'Default Mixes'!$V$33 -> 0.3747491003 | C24: ='Default Mixes'!C19*100*'Default Mixes'!$V$33 -> 0.01162737809 | D24: ='Default Mixes'!D19*100*'Default Mixes'!$V$33 -> 0.01260072889 | E24: ='Default Mixes'!E19*100*'Default Mixes'!$V$33 -> 0.01250139509 | F24: ='Default Mixes'!F19*100*'Default Mixes'!$V$33 -> 0.01196614766 | G24: ='Default Mixes'!G19*100*'Default Mixes'!$V$33 -> 0.01259190451 | H24: ='Default Mixes'!H19*100*'Default Mixes'!$V$33 -> 0.01176036201 | I24: ='Default Mixes'!I19*100*'Default Mixes'!$V$33 -> 0.01084538399 | J24: ='Default Mixes'!J19*100*'Default Mixes'!$V$33 -> 0.01274893454 | K24: ='Default Mixes'!K19*100*'Default Mixes'!$V$33 -> 0.01812733747 | L24: ='Default Mixes'!L19*100*'Default Mixes'!$V$33 -> 0.01952762983 | M24: ='Default Mixes'!M19*100*'Default Mixes'!$V$33 -> 0.02572968085 | N24: ='Default Mixes'!N19*100*'Default Mixes'!$V$33 -> 0.03880693286 | O24: ='Default Mixes'!O19*100*'Default Mixes'!$V$33 -> 0.09310232272 | P24: ='Default Mixes'!P19*100*'Default Mixes'!$V$33 -> 0.1919517686 | Q24: ='Default Mixes'!C9*100*'Default Mixes'!$V$33 -> 0.01178708168 | R24: ='Default Mixes'!D9*100*'Default Mixes'!$V$33 -> 0.01273682692 | S24: ='Default Mixes'!E9*100*'Default Mixes'!$V$33 -> 0.01261919935 | T24: ='Default Mixes'!F9*100*'Default Mixes'!$V$33 -> 0.01206349406 | U24: ='Default Mixes'!G9*100*'Default Mixes'!$V$33 -> 0.01270020347 | V24: ='Default Mixes'!H9*100*'Default Mixes'!$V$33 -> 0.0118874778 | W24: ='Default Mixes'!I9*100*'Default Mixes'!$V$33 -> 0.01095623847 | X24: ='Default Mixes'!J9*100*'Default Mixes'!$V$33 -> 0.01290191932 | Y24: ='Default Mixes'!K9*100*'Default Mixes'!$V$33 -> 0.01837819812 | Z24: ='Default Mixes'!L9*100*'Default Mixes'!$V$33 -> 0.01977543328 | AA24: ='Default Mixes'!M9*100*'Default Mixes'!$V$33 -> 0.0257578689 | AB24: ='Default Mixes'!N9*100*'Default Mixes'!$V$33 -> 0.03889376732 | AC24: ='Default Mixes'!O9*100*'Default Mixes'!$V$33 -> 0.09380348803 | AD24: ='Default Mixes'!P9*100*'Default Mixes'!$V$33 -> 0.1946474967 | AE24: ='Default Mixes'!Q9*100*'Default Mixes'!$V$33 -> 0.3797165149 | AF24: ='Default Mixes'!R9*100*'Default Mixes'!$V$33 -> 0.0668953411 | AG24: ='Default Mixes'!C29*100*'Default Mixes'!$V$33 -> 0.01037449414 | AH24: ='Default Mixes'!D29*100*'Default Mixes'!$V$33 -> 0.01127950695 | AI24: ='Default Mixes'!E29*100*'Default Mixes'!$V$33 -> 0.0111980613 | AJ24: ='Default Mixes'!F29*100*'Default Mixes'!$V$33 -> 0.01074080813 | AK24: ='Default Mixes'!G29*100*'Default Mixes'!$V$33 -> 0.01130840151 | AL24: ='Default Mixes'!H29*100*'Default Mixes'!$V$33 -> 0.01054573224 | AM24: ='Default Mixes'!I29*100*'Default Mixes'!$V$33 -> 0.009755569762 | AN24: ='Default Mixes'!J29*100*'Default Mixes'!$V$33 -> 0.01144952535 | AO24: ='Default Mixes'!K29*100*'Default Mixes'!$V$33 -> 0.01630468746 | AP24: ='Default Mixes'!L29*100*'Default Mixes'!$V$33 -> 0.01761453186 | AQ24: ='Default Mixes'!M29*100*'Default Mixes'!$V$33 -> 0.02595330093 | AR24: ='Default Mixes'!N29*100*'Default Mixes'!$V$33 -> 0.03937824587 | AS24: ='Default Mixes'!O29*100*'Default Mixes'!$V$33 -> 0.08932687338 | AT24: ='Default Mixes'!P29*100*'Default Mixes'!$V$33 -> 0.1796520262 | AU24: ='Default Mixes'!Q29*100*'Default Mixes'!$V$33 -> 0.3395070788

Sheet Parameters
A1: Parameter Values | H1: Automatically Populated (Based on TechScenario. Load on Start) | L1: Automatically Populated (Based on TechScenario. Load on Start)
A2: Numerator | B2: Denominator | C2: UnitLabel | D2: UnitConv | E2: NumeratorList | F2: DenominatorList | H2: Technology | I2: Input Value | J2: Balance | K2: Format | L2: MixList | M2: SelectedMix
A3: kg | B3: MWh | C3: =" (" & Numerator & "/" & Denominator & ")" -> (kg/MWh) | D3: =CONVERT(1,"kg",IF(Numerator="lb","lbm",Numerator))/(CONVERT(1,"MWh",IF(Denominator="MMBtu","BTU",Denominator))*IF(Denominator="MMBtu",0.000001,1)) -> 1 | E3: Kg | F3: MWh | H3: Fleet Coal | I3: 38.9 | J3: =I3/SUM(I:I)*100 -> 38.86113886 | K3: =ROUND(J3, 1) -> 38.9 | L3: U.S. Consumption Mix 2014 | M3: U.S. Consumption Mix 2014
E4: lb | F4: MJ | H4: Fleet Natural Gas | I4: 27.7 | J4: 27.67232767 | K4: 27.7 | L4: U.S. Consumption Mix 2000
A5: RibbonRef | F5: MMBtu | H5: Existing Nuclear | I5: 19.7 | J5: 19.68031968 | K5: 19.7 | L5: U.S. Consumption Mix 2001
A6: 372793980 | H6: Existing Hydro | I6: 7.4 | J6: 7.392607393 | K6: 7.4 | L6: U.S. Consumption Mix 2002
H7: Petroleum | I7: 1 | J7: 0.999000999 | K7: 1 | L7: U.S. Consumption Mix 2003
A8: SelectedGWP | B8: GWPCO2 | C8: GWPN2O | D8: GWPSF6 | E8: GWPCH4 | F8: Label | H8: Onshore Wind | I8: 4.5 | J8: 4.495504496 | K8: 4.5 | L8: U.S. Consumption Mix 2004
A9: 2013100 | B9: =VLOOKUP(SelectedGWP,$A$12:$F$19,2,FALSE) -> 1 | C9: =VLOOKUP(SelectedGWP,$A$12:$F$19,3,FALSE) -> 298 | D9: =VLOOKUP(SelectedGWP,$A$12:$F$19,4,FALSE) -> 23500 | E9: =VLOOKUP(SelectedGWP,$A$12:$F$19,5,FALSE) -> 36 | F9: =VLOOKUP(SelectedGWP,$A$12:$F$19,6,FALSE) -> kg CO₂e/ delivered MWh (IPCC 2013 100-yr GWP) | H9: Geothermal | I9: 0.4 | J9: 0.3996003996 | K9: 0.4 | L9: U.S. Consumption Mix 2005
H10: Solar Thermal | I10: 0.1 | J10: 0.0999000999 | K10: 0.1 | L10: U.S. Consumption Mix 2006
A11: GWP | B11: Carbon dioxide | C11: Nitrous oxide (laughing gas) | D11: Sulphur hexafluoride | E11: Methane | F11: Label | H11: SCPC | I11: 0 | J11: 0 | K11: 0 | L11: U.S. Consumption Mix 2007
A12: 200120 | B12: 1 | C12: 275 | D12: 15100 | E12: 62 | F12: =Numerator & " CO₂e/ delivered " & Denominator & " (IPCC 2001 20-yr GWP)" -> kg CO₂e/ delivered MWh (IPCC 2001 20-yr GWP) | H12: SCPC/CCS | I12: 0 | J12: 0 | K12: 0 | L12: U.S. Consumption Mix 2008
A13: 2001100 | B13: 1 | C13: 296 | D13: 22200 | E13: 23 | F13: =Numerator & " CO₂e/ delivered " & Denominator & " (IPCC 2001 100-yr GWP)" -> kg CO₂e/ delivered MWh (IPCC 2001 100-yr GWP) | H13: NGCC | I13: 0 | J13: 0 | K13: 0 | L13: U.S. Consumption Mix 2009
A14: 2001500 | B14: 1 | C14: 156 | D14: 32400 | E14: 7 | F14: =Numerator & " CO₂e/ delivered " & Denominator & " (IPCC 2001 500-yr GWP)" -> kg CO₂e/ delivered MWh (IPCC 2001 500-yr GWP) | H14: NGCC/CCS | I14: 0 | J14: 0 | K14: 0 | L14: U.S. Consumption Mix 2010
A15: 200720 | B15: 1 | C15: 289 | D15: 16300 | E15: 72 | F15: =Numerator & " CO₂e/ delivered " & Denominator & " (IPCC 2007 20-yr GWP)" -> kg CO₂e/ delivered MWh (IPCC 2007 20-yr GWP) | H15: IGCC | I15: 0 | J15: 0 | K15: 0 | L15: U.S. Consumption Mix 2011
A16: 2007100 | B16: 1 | C16: 298 | D16: 22800 | E16: 25 | F16: =Numerator & " CO₂e/ delivered " & Denominator & " (IPCC 2007 100-yr GWP)" -> kg CO₂e/ delivered MWh (IPCC 2007 100-yr GWP) | H16: IGCC/CCS | I16: 0 | J16: 0 | K16: 0 | L16: U.S. Consumption Mix 2012
A17: 2007500 | B17: 1 | C17: 153 | D17: 32600 | E17: 7.6 | F17: =Numerator & " CO₂e/ delivered " & Denominator & " (IPCC 2007 500-yr GWP)" -> kg CO₂e/ delivered MWh (IPCC 2007 500-yr GWP) | H17: Gen III+ Nuclear | I17: 0 | J17: 0 | K17: 0 | L17: U.S. Consumption Mix 2013
A18: 201320 | B18: 1 | C18: 268 | D18: 17500 | E18: 87 | F18: =Numerator & " CO₂e/ delivered " & Denominator & " (IPCC 2013 20-yr GWP)" -> kg CO₂e/ delivered MWh (IPCC 2013 20-yr GWP) | H18: Existing Nuclear w/ Centrifuge Enrich | I18: 0 | J18: 0 | K18: 0 | L18: U.S. Gen. Mix 2000
A19: 2013100 | B19: 1 | C19: 298 | D19: 23500 | E19: 36 | F19: =Numerator & " CO₂e/ delivered " & Denominator & " (IPCC 2013 100-yr GWP)" -> kg CO₂e/ delivered MWh (IPCC 2013 100-yr GWP) | H19: Gen III+ Nuclear w/ Centrifuge Enrich | I19: 0 | J19: 0 | K19: 0 | L19: U.S. Gen. Mix 2001
H20: Greenfield Hydro | I20: 0 | J20: 0 | K20: 0 | L20: U.S. Gen. Mix 2002
H21: Power Addition Hydro | I21: 0 | J21: 0 | K21: 0 | L21: U.S. Gen. Mix 2003
H22: Power Upgrade Hydro | I22: 0 | J22: 0 | K22: 0 | L22: U.S. Gen. Mix 2004
A23: RngMixType | B23: NumTech | C23: NumMix | D23: DefaultNumMix | E23: DefaultMixName | H23: Advanced Onshore Wind | I23: 0 | J23: 0 | K23: 0 | L23: U.S. Gen. Mix 2005
A24: ="Parameters!L3:L"&COUNTA(Parameters!L:L) -> Parameters!L3:L48 | B24: =COUNTA(TechScenario!A:A)-1 -> 23 | C24: =COUNTA(TechScenario!1:1)-1 -> 46 | D24: 43 | E24: =TechScenario!B1 -> U.S. Consumption Mix 2014 | H24: Offshore Wind | I24: 0 | J24: 0 | K24: 0 | L24: U.S. Gen. Mix 2006
H25: Solar PV | I25: 0.4 | J25: 0.3996003996 | K25: 0.4 | L25: U.S. Gen. Mix 2007
L26: U.S. Gen. Mix 2008
L27: U.S. Gen. Mix 2009
L28: U.S. Gen. Mix 2010
L29: U.S. Gen. Mix 2011
L30: U.S. Gen. Mix 2012
L31: U.S. Gen. Mix 2013
L32: U.S. Gen. Mix 2014
L33: U.S. Gen. Mix AEO2040
L34: North America Mix 2000
L35: North America Mix 2001
L36: North America Mix 2002
L37: North America Mix 2003
L38: North America Mix 2004
L39: North America Mix 2005
L40: North America Mix 2006
L41: North America Mix 2007
L42: North America Mix 2008
L43: North America Mix 2009
L44: North America Mix 2010
L45: North America Mix 2011
L46: North America Mix 2012
L47: North America Mix 2013
L48: North America Mix 2014

Sheet Version
A1: Purpose | B1: Show Grid Mix Explorer
A2: Developer | B2: Chung Shih. Greg Cooney. Joe Marriott.
A5: Version | B5: Date | C5: Description
A6: 0.1 | B6: 2012-11-15 | C6: Beta version
A7: 0.2 | B7: 2012-11-16 | C7: Removed chart update in form but in dashboard
A8: 0.3 | B8: 2012-11-20 | C8: Updated all datasets
A9: 0.4 | B9: 2012-11-20 | C9: Removed compare button in the ribbon
A10: 1.0 | B10: 2014-08-13 | C10: Updated model to include AEO2014 with updated mixer interface
A11: 1.1 | B11: 2014-08-14 | C11: Updated water usage chart. Updated scenario names
A12: 2.0 | B12: 2015-01-27 | C12: Updated the Data, TechScenario, Default Mixes. Remove 1.0 and 1.1 AEO-scenario series. Removed water usage chart.
A13: 2.1 | B13: 2015-08-05 | C13: Updated the 2013 GWP factors
A14: 3.0 | B14: 2016-06-30 | C14: Add Solar PV; update all LCA results for all power technologies; update with the 2014 mixes

Sheet Default Mixes
B1: Year | C1: 2000 | D1: 2001 | E1: 2002 | F1: 2003 | G1: 2004 | H1: 2005 | I1: 2006 | J1: 2007 | K1: 2008 | L1: 2009 | M1: 2010 | N1: 2011 | O1: 2012 | P1: 2013 | Q1: 2014 | R1: AEO 2040
A2: U.S. Generation Mix | B2: Fleet Coal | C2: 0.5385293379 | D2: 0.518084816 | E2: 0.5098969539 | F2: 0.5172537869 | G2: 0.5068946919 | H2: 0.5046914443 | I2: 0.4980178225 | J2: 0.4931444939 | K2: 0.490012829 | L2: 0.4520969847 | M2: 0.4554334518 | N2: 0.430204531 | O2: 0.3807613351 | P2: 0.3964942587 | Q2: 0.3938369893 | R2: 0.3503137196
B3: Fleet Natural Gas | C3: 0.1435565478 | D3: 0.1739131736 | E3: 0.1822649561 | F3: 0.1703202474 | G3: 0.1819469943 | H3: 0.1907969363 | I3: 0.2042702447 | J3: 0.2192700569 | K3: 0.2178828683 | L3: 0.2371267614 | M3: 0.2435081953 | N3: 0.2515784317 | O3: 0.3082957592 | P3: 0.2817394956 | Q3: 0.2805193725 | R3: 0.3150727238
B4: Existing Nuclear | C4: 0.2089398934 | D4: 0.2092049799 | E4: 0.2057555661 | F4: 0.2001501651 | G4: 0.2020423877 | H4: 0.1960688249 | I4: 0.1969590182 | J4: 0.1972193038 | K4: 0.1989384953 | L4: 0.2056831904 | M4: 0.1989510157 | N4: 0.1961136828 | O4: 0.1934763403 | P4: 0.1974760124 | Q4: 0.1984898985 | R4: 0.1738435883
B5: Existing Hydro | C5: 0.07366560541 | D5: 0.05663636 | E5: 0.06741529171 | F5: 0.07004324126 | G5: 0.06660090166 | H5: 0.06613379455 | I5: 0.07072739723 | J5: 0.05884456157 | K5: 0.06133004191 | L5: 0.0692132413 | M5: 0.06279458615 | N5: 0.07766429836 | O5: 0.06822576544 | P5: 0.06604099659 | Q5: 0.06304364823 | R5: 0.06535962341
B6: Petroleum | C6: 0.0297158266 | D6: 0.03644065329 | E6: 0.02796753655 | F6: 0.03538078516 | G6: 0.03494863284 | H6: 0.03402155893 | I6: 0.01960110256 | J6: 0.01936719609 | K6: 0.01429939527 | L6: 0.01276239666 | M6: 0.0119261934 | N6: 0.01036106376 | O6: 0.008824157388 | P6: 0.009997739959 | Q6: 0.0105207619 | R6: 0.0033762505
B7: Onshore Wind | C7: 0.001550160898 | D7: 0.001833202766 | E7: 0.002731049159 | F7: 0.00293175743 | G7: 0.003624078703 | H7: 0.004465785628 | I7: 0.00665246054 | J7: 0.008425092248 | K7: 0.01366127837 | L7: 0.0190236128 | M7: 0.02333563603 | N7: 0.02982565775 | O7: 0.0354148282 | P7: 0.04204526939 | Q7: 0.04523108427 | R7: 0.05451910322
B8: Geothermal | C8: 0.003905890047 | D8: 0.003739058811 | E8: 0.003822255492 | F8: 0.003780072331 | G8: 0.003794982301 | H8: 0.003683752875 | I8: 0.003644854833 | J8: 0.003579624825 | K8: 0.003661892799 | L8: 0.003864404685 | M8: 0.003752113476 | N8: 0.003801141434 | O8: 0.003913632503 | P8: 0.003948188751 | Q8: 0.00395328466 | R8: 0.01478503833
B9: Solar Thermal | C9: 0.0001367378768 | D9: 0.0001477555443 | E9: 0.0001463909874 | F9: 0.0001399444415 | G9: 0.0001473306882 | H9: 0.0001379025375 | I9: 0.0001270995507 | J9: 0.0001496707244 | K9: 0.0002131991495 | L9: 0.0002294079935 | M9: 0.0002988081696 | N9: 0.000451193205 | O9: 0.001088181972 | P9: 0.0022580386 | Q9: 0.004404960567 | R9: 0.0007760298226
B11: Year | C11: 2000 | D11: 2001 | E11: 2002 | F11: 2003 | G11: 2004 | H11: 2005 | I11: 2006 | J11: 2007 | K11: 2008 | L11: 2009 | M11: 2010 | N11: 2011 | O11: 2012 | P11: 2013 | Q11: 2014
A12: U.S. Consumption Mix (includes imports/exports) | B12: Fleet Coal | C12: 0.532024024 | D12: 0.5133102208 | E12: 0.5056734039 | F12: 0.5137029654 | G12: 0.503206078 | H12: 0.4999686201 | I12: 0.4935553575 | J12: 0.4879878853 | K12: 0.48414084 | L12: 0.446626087 | M12: 0.4502750254 | N12: 0.4250202503 | O12: 0.3755355478 | P12: 0.3902600633 | Q12: 0.3886294353
B13: Fleet Natural Gas | C13: 0.141901782 | D13: 0.1723774249 | E13: 0.1807422702 | F13: 0.1691593109 | G13: 0.1806857393 | H13: 0.1891192377 | I13: 0.2025459763 | J13: 0.2171556962 | K13: 0.2153651442 | L13: 0.2344619557 | M13: 0.2410131506 | N13: 0.2489321804 | O13: 0.3044755769 | P13: 0.2775561129 | Q13: 0.276820276
B14: Existing Nuclear | C14: 0.2071791005 | D14: 0.2079184413 | E14: 0.2045449298 | F14: 0.1992904989 | G14: 0.2016114281 | H14: 0.1952946444 | I14: 0.1964029604 | J14: 0.1962991438 | K14: 0.1988018873 | L14: 0.2054128687 | M14: 0.1983716555 | N14: 0.195291123 | O14: 0.1928402889 | P14: 0.1957806822 | Q14: 0.1972710038
B15: Existing Hydro | C15: 0.08356615283 | D15: 0.06424719046 | E15: 0.07439925988 | F15: 0.0756615606 | G15: 0.07209375937 | H15: 0.07349220914 | I15: 0.07759921189 | J15: 0.06722672076 | K15: 0.07011606396 | L15: 0.07782324692 | M15: 0.07128944502 | N15: 0.08667501713 | O15: 0.07836346377 | P15: 0.07882365377 | Q15: 0.07383071357
B16: Petroleum | C16: 0.02980571963 | D16: 0.03648238722 | E16: 0.02799736583 | F16: 0.03538327078 | G16: 0.03489142303 | H16: 0.03390650407 | I16: 0.01952299904 | J16: 0.01926641153 | K16: 0.0142062293 | L16: 0.01272864026 | M16: 0.01183144355 | N16: 0.01026138066 | O16: 0.008729255915 | P16: 0.009874982663 | Q16: 0.01039696583
B17: Onshore Wind | C17: 0.001535366774 | D17: 0.001819053089 | E17: 0.002711172502 | F17: 0.002914009203 | G17: 0.00360287675 | H17: 0.004437995116 | I17: 0.006639704774 | J17: 0.008379066976 | K17: 0.01354763794 | L17: 0.01890687209 | M17: 0.02321443442 | N17: 0.0296160592 | O17: 0.03511749155 | P17: 0.04159384928 | Q17: 0.04480758118
B18: Geothermal | C18: 0.003852969002 | D18: 0.00369910549 | E18: 0.003786573513 | F18: 0.003749569026 | G18: 0.003762621197 | H18: 0.003644361581 | I18: 0.003607976438 | J18: 0.003537179349 | K18: 0.003611908311 | L18: 0.003813796028 | M18: 0.00370636441 | N18: 0.003753803513 | O18: 0.003858327221 | P18: 0.003883889548 | Q18: 0.003896689052
B19: Solar Thermal | C19: 0.0001348852103 | D19: 0.0001461767179 | E19: 0.0001450243806 | F19: 0.0001388151595 | G19: 0.0001460743493 | H19: 0.0001364279111 | I19: 0.0001258135661 | J19: 0.0001478960007 | K19: 0.0002102890014 | L19: 0.000226533311 | M19: 0.0002984811697 | N19: 0.0004501858684 | O19: 0.001080047994 | P19: 0.002226766386 | Q19: 0.004347335301
B21: Year | C21: 2000 | D21: 2001 | E21: 2002 | F21: 2003 | G21: 2004 | H21: 2005 | I21: 2006 | J21: 2007 | K21: 2008 | L21: 2009 | M21: 2010 | N21: 2011 | O21: 2012 | P21: 2013 | Q21: 2014
A22: North American Mix | B22: Fleet Coal | C22: 0.4998892308 | D22: 0.483297493 | E22: 0.4762520041 | F22: 0.484175564 | G22: 0.4723309834 | H22: 0.4684993572 | I22: 0.4627233297 | J22: 0.4579240635 | K22: 0.4539460016 | L22: 0.4175548209 | M22: 0.4226291207 | N22: 0.3970887178 | O22: 0.3513290029 | P22: 0.3654187545 | Q22: 0.3624632351
B23: Fleet Natural Gas | C23: 0.1328270674 | D23: 0.1616302975 | E23: 0.1682077491 | F23: 0.1571619323 | G23: 0.1679942124 | H23: 0.176065425 | I23: 0.1891037175 | J23: 0.2026136778 | K23: 0.1996898278 | L23: 0.2168233838 | M23: 0.2249598004 | N23: 0.2323050962 | O23: 0.2823815571 | P23: 0.2579563631 | Q23: 0.2523157229
B24: Existing Nuclear | C24: 0.2006114 | D24: 0.2025661142 | E24: 0.199166465 | F24: 0.1946320496 | G24: 0.199352216 | H24: 0.1931486895 | I24: 0.1958604157 | J24: 0.193990004 | K24: 0.1963363319 | L24: 0.2018139411 | M24: 0.1964215928 | N24: 0.1934082696 | O24: 0.1917023731 | P24: 0.1935600302 | Q24: 0.1961219951
B25: Existing Hydro | C25: 0.1332632743 | D25: 0.1127137772 | E25: 0.1235771727 | F25: 0.1236654659 | G25: 0.1197571498 | H25: 0.1223071331 | I25: 0.1240454327 | J25: 0.1157137413 | K25: 0.1200137739 | L25: 0.1296560942 | M25: 0.1185113922 | N25: 0.135400354 | O25: 0.1282046288 | P25: 0.1286994845 | Q25: 0.1300403397
B26: Petroleum | C26: 0.02842238672 | D26: 0.03464079133 | E26: 0.02675497189 | F26: 0.03410560058 | G26: 0.03361483288 | H26: 0.03225849989 | I26: 0.01844669608 | J26: 0.01834712061 | K26: 0.01366442988 | L26: 0.01224970497 | M26: 0.01105592099 | N26: 0.009435598135 | O26: 0.008085710618 | P26: 0.009066006997 | Q26: 0.009517346443
B27: Onshore Wind | C27: 0.001428489459 | D27: 0.001709433254 | E27: 0.002519928276 | F27: 0.002769175875 | G27: 0.00344032643 | H27: 0.004330591989 | I27: 0.006461813652 | J27: 0.008101911256 | K27: 0.01291174817 | L27: 0.01827315768 | M27: 0.02277535944 | N27: 0.0285331607 | O27: 0.03378766114 | P27: 0.0397112117 | Q27: 0.0421308071
B28: Geothermal | C28: 0.003437800339 | D28: 0.003311243854 | E28: 0.003391804037 | F28: 0.003365611277 | G28: 0.003379094176 | H28: 0.003267965846 | I28: 0.003245423662 | J28: 0.003176659545 | K28: 0.003248741645 | L28: 0.003424557284 | M28: 0.003345738111 | N28: 0.003371990133 | O28: 0.003472816035 | P28: 0.003504067616 | Q28: 0.003472048966
B29: Solar Thermal | C29: 0.000120350935 | D29: 0.0001308496771 | E29: 0.0001299048541 | F29: 0.0001246004175 | G29: 0.0001311848728 | H29: 0.0001223374092 | I29: 0.0001131710063 | J29: 0.0001328220019 | K29: 0.0001891450661 | L29: 0.0002043401201 | M29: 0.0003010753093 | N29: 0.0004568134739 | O29: 0.001036250306 | P29: 0.002084081309 | Q29: 0.003938504741
T32: Solar Split 2014
T33: PV | U33: 15250 | V33: =U33/SUM($U$33:$U$34) -> 0.8620202363
T34: Thermal | U34: 2441 | V34: =U34/SUM($U$33:$U$34) -> 0.1379797637
